Workbook

Sheet Contribution Report
A1: EMPLOYERS COMBINED REPORT OF CONTRIBUTIONS FOR
A2: LISTED FUNDS OF LABORERS LOCAL 100 & 397
A3: Fund Office (314) 367-6555
A5: CONTRIBUTIONS REMITTED AFTER THE 15TH OF THE MONTH ARE DELINQUENT. PAYMENTS RECEIVED AFTER THE 20TH OF THE MONTH WILL BE SUBJECT TO A LIQUIDATED DAMAGES ASSESSMENT OF 10 PERCENT (10%) OF TOTAL CONTRIBUTIONS.
E7: =IF(OR(ISBLANK(A25),ISBLANK(B25),ISBLANK(C25),ISBLANK(D25)),"Invalid - Complete Reporting Data",IF(A25="SIBA",("SIBA "&VLOOKUP(D25,'Rate Lookup'!$AF:$AG,2,FALSE)),IF(A25="Non-SIBA",("Non-SIBA "&VLOOKUP(D25,'Rate Lookup'!$AF:$AG,2,FALSE)),IF(A25="Masonry",("Masonry "&VLOOKUP(D25,'Rate Lookup'!$AF:$AG,2,FALSE)),IF(A25="National Distribution",("NDA "&VLOOKUP(D25,'Rate Lookup'!$AF:$AG,2,FALSE)),"Invalid - Complete Reporting Data"))))) -> SIBA Rates Effective 8/1/2023
A8: Employer: | F8: ST | G8: TH | H8: DT
E9: Welfare | F9: =VLOOKUP($E$7,'Rate Lookup'!$A$3:$AD$50,3,FALSE) -> 8.7 | G9: =VLOOKUP($E$7,'Rate Lookup'!$A$3:$AD$50,4,FALSE) -> 13.05 | H9: =VLOOKUP($E$7,'Rate Lookup'!$A$3:$AD$50,5,FALSE) -> 17.4
A10: Contact Name: | E10: Pension | F10: =VLOOKUP($E$7,'Rate Lookup'!$A$3:$AD$50,7,FALSE) -> 11.4 | G10: =VLOOKUP($E$7,'Rate Lookup'!$A$3:$AD$50,8,FALSE) -> 17.1 | H10: =VLOOKUP($E$7,'Rate Lookup'!$A$3:$AD$50,9,FALSE) -> 22.8
E11: Annuity | F11: =VLOOKUP($E$7,'Rate Lookup'!$A$3:$AD$50,11,FALSE) -> 7.5 | G11: =VLOOKUP($E$7,'Rate Lookup'!$A$3:$AD$50,12,FALSE) -> 11.25 | H11: =VLOOKUP($E$7,'Rate Lookup'!$A$3:$AD$50,13,FALSE) -> 15
E12: Training | F12: =VLOOKUP($E$7,'Rate Lookup'!$A$3:$AD$50,15,FALSE) -> 0.8 | G12: =VLOOKUP($E$7,'Rate Lookup'!$A$3:$AD$50,15,FALSE) -> 0.8 | H12: =VLOOKUP($E$7,'Rate Lookup'!$A$3:$AD$106,15,FALSE) -> 0.8
A13: Address: | E13: LECET Funds | F13: =VLOOKUP($E$7,'Rate Lookup'!$A$3:$AD$50,17,FALSE) -> 2.01 | G13: =VLOOKUP($E$7,'Rate Lookup'!$A$3:$AD$50,17,FALSE) -> 2.01 | H13: =VLOOKUP($E$7,'Rate Lookup'!$A$3:$AD$106,17,FALSE) -> 2.01
E14: Supp. Dues | F14: =IF(B25="No",0,IF(C25=100,VLOOKUP($E$7,'Rate Lookup'!$A$3:$AD$50,19,FALSE),IF(A25="Non-SIBA",VLOOKUP($E$7,'Rate Lookup'!$A$3:$AD$50,23,FALSE),VLOOKUP($E$7,'Rate Lookup'!$A$3:$AD$50,21,FALSE)))) -> 0.6 | G14: =IF(B25="No",0,IF(C25=100,VLOOKUP($E$7,'Rate Lookup'!$A$3:$AD$50,19,FALSE),IF(A25="Non-SIBA",VLOOKUP($E$7,'Rate Lookup'!$A$3:$AD$50,23,FALSE),VLOOKUP($E$7,'Rate Lookup'!$A$3:$AD$50,21,FALSE)))) -> 0.6 | H14: =IF(B25="No",0,IF(C25=100,VLOOKUP($E$7,'Rate Lookup'!$A$3:$AD$50,19,FALSE),IF(A25="Non-SIBA",VLOOKUP($E$7,'Rate Lookup'!$A$3:$AD$50,23,FALSE),VLOOKUP($E$7,'Rate Lookup'!$A$3:$AD$50,21,FALSE)))) -> 0.6
E15: Total | F15: =SUM(F9:F14) -> 31.01 | G15: =SUM(G9:G14) -> 44.81 | H15: =SUM(H9:H14) -> 58.61
E16: Monthly Contribution Report Summary
A17: Phone Number:
F18: ST | G18: TH | H18: DT
A19: Email: | E19: Total Hours | F19: =SUM(E39:E226) -> 0 | G19: =SUM(F39:F226) -> 0 | H19: =SUM(G39:G226) -> 0
E20: x Rate | F20: =F15 -> 31.01 | G20: =G15 -> 44.81 | H20: =H15 -> 58.61
E21: Total | F21: =ROUND(F19*F20,2) -> 0 | G21: =ROUND(G19*G20,2) -> 0 | H21: =ROUND(H19*H20,2) -> 0
A22: Reporting Data | H22: Subtotal: | I22: =SUM(F21:H21) -> 0
H23: Liquidated Damages:
A24: Agreement Type | B24: Supplement Dues | C24: Work Jurisdiction | D24: Reporting Period | H24: Adjustment:
A25: SIBA | B25: Yes | C25: 397 | D25: August, 2023 | H25: Total Contribution Due: | I25: =+I24+I23+I22 -> 0
C26: (100 / 397) | D26: (Month, Year) | E26: Submit form electronically through:
A27: The undersigned employer, if not already a signator, hereby becomes a signatory party to the currently applicable collective bargaining agreement with Laborers Locals 100 & 397 covering the type and area of work of the below employees and also to each agreement and Declaration of Trust, and amendments, establishing the funds for which payment is made herewith. | F27: https://www.ekonbenefits.com/securesend
E28: Payment Remittance
E29: Option 1) | F29: By Automatic Transfer:
F30: Select this option upon uploading form
F31: Note: ACH Debit Authorization must be on file
E32: Option 2) | F32: By Check:
F33: Pay to: Employers & Laborers Locals 100 & 397 Funds
A34: Print Name: | F34: Mail to: Ekon Benefits
F35: 4940 Washington Blvd.
A36: Date: | F36: St. Louis, MO 63108
E37: Call Ekon Benefits at (314) 367-6555 with questions
A38: Name | C38: SSN | D38: Home Local # 100/397 | E38: Straight Time Hours | F38: Time & One-Half Hours | G38: Double Time Hours | H38: LPL (Withheld) | I38: Checkoff (Withheld)
H39: =IF(AND($E39="",$F39="",$G39=""),"",(ROUND(SUM(E39:G39)*VLOOKUP($E$7,'Rate Lookup'!$A$3:$AD$50,25,FALSE),2))) ->  | I39: =IF(AND($E39="",$F39="",$G39=""),"",(ROUND(SUM(E39:G39)*VLOOKUP($E$7,'Rate Lookup'!$A$3:$AD$50,27,FALSE),2))) -> 
H40: =IF(AND($E40="",$F40="",$G40=""),"",(ROUND(SUM(E40:G40)*VLOOKUP($E$7,'Rate Lookup'!$A$3:$AD$50,25,FALSE),2))) ->  | I40: =IF(AND($E40="",$F40="",$G40=""),"",(ROUND(SUM(E40:G40)*VLOOKUP($E$7,'Rate Lookup'!$A$3:$AD$50,27,FALSE),2))) -> 
H41: =IF(AND($E41="",$F41="",$G41=""),"",(ROUND(SUM(E41:G41)*VLOOKUP($E$7,'Rate Lookup'!$A$3:$AD$50,25,FALSE),2))) ->  | I41: =IF(AND($E41="",$F41="",$G41=""),"",(ROUND(SUM(E41:G41)*VLOOKUP($E$7,'Rate Lookup'!$A$3:$AD$50,27,FALSE),2))) -> 
H42: =IF(AND($E42="",$F42="",$G42=""),"",(ROUND(SUM(E42:G42)*VLOOKUP($E$7,'Rate Lookup'!$A$3:$AD$50,25,FALSE),2))) ->  | I42: =IF(AND($E42="",$F42="",$G42=""),"",(ROUND(SUM(E42:G42)*VLOOKUP($E$7,'Rate Lookup'!$A$3:$AD$50,27,FALSE),2))) -> 
H43: =IF(AND($E43="",$F43="",$G43=""),"",(ROUND(SUM(E43:G43)*VLOOKUP($E$7,'Rate Lookup'!$A$3:$AD$50,25,FALSE),2))) ->  | I43: =IF(AND($E43="",$F43="",$G43=""),"",(ROUND(SUM(E43:G43)*VLOOKUP($E$7,'Rate Lookup'!$A$3:$AD$50,27,FALSE),2))) -> 
H44: =IF(AND($E44="",$F44="",$G44=""),"",(ROUND(SUM(E44:G44)*VLOOKUP($E$7,'Rate Lookup'!$A$3:$AD$50,25,FALSE),2))) ->  | I44: =IF(AND($E44="",$F44="",$G44=""),"",(ROUND(SUM(E44:G44)*VLOOKUP($E$7,'Rate Lookup'!$A$3:$AD$50,27,FALSE),2))) -> 
H45: =IF(AND($E45="",$F45="",$G45=""),"",(ROUND(SUM(E45:G45)*VLOOKUP($E$7,'Rate Lookup'!$A$3:$AD$50,25,FALSE),2))) ->  | I45: =IF(AND($E45="",$F45="",$G45=""),"",(ROUND(SUM(E45:G45)*VLOOKUP($E$7,'Rate Lookup'!$A$3:$AD$50,27,FALSE),2))) -> 
H46: =IF(AND($E46="",$F46="",$G46=""),"",(ROUND(SUM(E46:G46)*VLOOKUP($E$7,'Rate Lookup'!$A$3:$AD$50,25,FALSE),2))) ->  | I46: =IF(AND($E46="",$F46="",$G46=""),"",(ROUND(SUM(E46:G46)*VLOOKUP($E$7,'Rate Lookup'!$A$3:$AD$50,27,FALSE),2))) -> 
H47: =IF(AND($E47="",$F47="",$G47=""),"",(ROUND(SUM(E47:G47)*VLOOKUP($E$7,'Rate Lookup'!$A$3:$AD$50,25,FALSE),2))) ->  | I47: =IF(AND($E47="",$F47="",$G47=""),"",(ROUND(SUM(E47:G47)*VLOOKUP($E$7,'Rate Lookup'!$A$3:$AD$50,27,FALSE),2))) -> 
H48: =IF(AND($E48="",$F48="",$G48=""),"",(ROUND(SUM(E48:G48)*VLOOKUP($E$7,'Rate Lookup'!$A$3:$AD$50,25,FALSE),2))) ->  | I48: =IF(AND($E48="",$F48="",$G48=""),"",(ROUND(SUM(E48:G48)*VLOOKUP($E$7,'Rate Lookup'!$A$3:$AD$50,27,FALSE),2))) -> 
H49: =IF(AND($E49="",$F49="",$G49=""),"",(ROUND(SUM(E49:G49)*VLOOKUP($E$7,'Rate Lookup'!$A$3:$AD$50,25,FALSE),2))) ->  | I49: =IF(AND($E49="",$F49="",$G49=""),"",(ROUND(SUM(E49:G49)*VLOOKUP($E$7,'Rate Lookup'!$A$3:$AD$50,27,FALSE),2))) -> 
H50: =IF(AND($E50="",$F50="",$G50=""),"",(ROUND(SUM(E50:G50)*VLOOKUP($E$7,'Rate Lookup'!$A$3:$AD$50,25,FALSE),2))) ->  | I50: =IF(AND($E50="",$F50="",$G50=""),"",(ROUND(SUM(E50:G50)*VLOOKUP($E$7,'Rate Lookup'!$A$3:$AD$50,27,FALSE),2))) -> 
H51: =IF(AND($E51="",$F51="",$G51=""),"",(ROUND(SUM(E51:G51)*VLOOKUP($E$7,'Rate Lookup'!$A$3:$AD$50,25,FALSE),2))) ->  | I51: =IF(AND($E51="",$F51="",$G51=""),"",(ROUND(SUM(E51:G51)*VLOOKUP($E$7,'Rate Lookup'!$A$3:$AD$50,27,FALSE),2))) -> 
H52: =IF(AND($E52="",$F52="",$G52=""),"",(ROUND(SUM(E52:G52)*VLOOKUP($E$7,'Rate Lookup'!$A$3:$AD$50,25,FALSE),2))) ->  | I52: =IF(AND($E52="",$F52="",$G52=""),"",(ROUND(SUM(E52:G52)*VLOOKUP($E$7,'Rate Lookup'!$A$3:$AD$50,27,FALSE),2))) -> 
H53: =IF(AND($E53="",$F53="",$G53=""),"",(ROUND(SUM(E53:G53)*VLOOKUP($E$7,'Rate Lookup'!$A$3:$AD$50,25,FALSE),2))) ->  | I53: =IF(AND($E53="",$F53="",$G53=""),"",(ROUND(SUM(E53:G53)*VLOOKUP($E$7,'Rate Lookup'!$A$3:$AD$50,27,FALSE),2))) -> 
H54: =IF(AND($E54="",$F54="",$G54=""),"",(ROUND(SUM(E54:G54)*VLOOKUP($E$7,'Rate Lookup'!$A$3:$AD$50,25,FALSE),2))) ->  | I54: =IF(AND($E54="",$F54="",$G54=""),"",(ROUND(SUM(E54:G54)*VLOOKUP($E$7,'Rate Lookup'!$A$3:$AD$50,27,FALSE),2))) -> 
H55: =IF(AND($E55="",$F55="",$G55=""),"",(ROUND(SUM(E55:G55)*VLOOKUP($E$7,'Rate Lookup'!$A$3:$AD$50,25,FALSE),2))) ->  | I55: =IF(AND($E55="",$F55="",$G55=""),"",(ROUND(SUM(E55:G55)*VLOOKUP($E$7,'Rate Lookup'!$A$3:$AD$50,27,FALSE),2))) -> 
H56: =IF(AND($E56="",$F56="",$G56=""),"",(ROUND(SUM(E56:G56)*VLOOKUP($E$7,'Rate Lookup'!$A$3:$AD$50,25,FALSE),2))) ->  | I56: =IF(AND($E56="",$F56="",$G56=""),"",(ROUND(SUM(E56:G56)*VLOOKUP($E$7,'Rate Lookup'!$A$3:$AD$50,27,FALSE),2))) -> 
H57: =IF(AND($E57="",$F57="",$G57=""),"",(ROUND(SUM(E57:G57)*VLOOKUP($E$7,'Rate Lookup'!$A$3:$AD$50,25,FALSE),2))) ->  | I57: =IF(AND($E57="",$F57="",$G57=""),"",(ROUND(SUM(E57:G57)*VLOOKUP($E$7,'Rate Lookup'!$A$3:$AD$50,27,FALSE),2))) -> 
H58: =IF(AND($E58="",$F58="",$G58=""),"",(ROUND(SUM(E58:G58)*VLOOKUP($E$7,'Rate Lookup'!$A$3:$AD$50,25,FALSE),2))) ->  | I58: =IF(AND($E58="",$F58="",$G58=""),"",(ROUND(SUM(E58:G58)*VLOOKUP($E$7,'Rate Lookup'!$A$3:$AD$50,27,FALSE),2))) -> 
H59: =IF(AND($E59="",$F59="",$G59=""),"",(ROUND(SUM(E59:G59)*VLOOKUP($E$7,'Rate Lookup'!$A$3:$AD$50,25,FALSE),2))) ->  | I59: =IF(AND($E59="",$F59="",$G59=""),"",(ROUND(SUM(E59:G59)*VLOOKUP($E$7,'Rate Lookup'!$A$3:$AD$50,27,FALSE),2))) -> 
H60: =IF(AND($E60="",$F60="",$G60=""),"",(ROUND(SUM(E60:G60)*VLOOKUP($E$7,'Rate Lookup'!$A$3:$AD$50,25,FALSE),2))) ->  | I60: =IF(AND($E60="",$F60="",$G60=""),"",(ROUND(SUM(E60:G60)*VLOOKUP($E$7,'Rate Lookup'!$A$3:$AD$50,27,FALSE),2))) -> 
H61: =IF(AND($E61="",$F61="",$G61=""),"",(ROUND(SUM(E61:G61)*VLOOKUP($E$7,'Rate Lookup'!$A$3:$AD$50,25,FALSE),2))) ->  | I61: =IF(AND($E61="",$F61="",$G61=""),"",(ROUND(SUM(E61:G61)*VLOOKUP($E$7,'Rate Lookup'!$A$3:$AD$50,27,FALSE),2))) -> 
H62: =IF(AND($E62="",$F62="",$G62=""),"",(ROUND(SUM(E62:G62)*VLOOKUP($E$7,'Rate Lookup'!$A$3:$AD$50,25,FALSE),2))) ->  | I62: =IF(AND($E62="",$F62="",$G62=""),"",(ROUND(SUM(E62:G62)*VLOOKUP($E$7,'Rate Lookup'!$A$3:$AD$50,27,FALSE),2))) -> 
H63: =IF(AND($E63="",$F63="",$G63=""),"",(ROUND(SUM(E63:G63)*VLOOKUP($E$7,'Rate Lookup'!$A$3:$AD$50,25,FALSE),2))) ->  | I63: =IF(AND($E63="",$F63="",$G63=""),"",(ROUND(SUM(E63:G63)*VLOOKUP($E$7,'Rate Lookup'!$A$3:$AD$50,27,FALSE),2))) -> 
H64: =IF(AND($E64="",$F64="",$G64=""),"",(ROUND(SUM(E64:G64)*VLOOKUP($E$7,'Rate Lookup'!$A$3:$AD$50,25,FALSE),2))) ->  | I64: =IF(AND($E64="",$F64="",$G64=""),"",(ROUND(SUM(E64:G64)*VLOOKUP($E$7,'Rate Lookup'!$A$3:$AD$50,27,FALSE),2))) -> 
H65: =IF(AND($E65="",$F65="",$G65=""),"",(ROUND(SUM(E65:G65)*VLOOKUP($E$7,'Rate Lookup'!$A$3:$AD$50,25,FALSE),2))) ->  | I65: =IF(AND($E65="",$F65="",$G65=""),"",(ROUND(SUM(E65:G65)*VLOOKUP($E$7,'Rate Lookup'!$A$3:$AD$50,27,FALSE),2))) -> 
H66: =IF(AND($E66="",$F66="",$G66=""),"",(ROUND(SUM(E66:G66)*VLOOKUP($E$7,'Rate Lookup'!$A$3:$AD$50,25,FALSE),2))) ->  | I66: =IF(AND($E66="",$F66="",$G66=""),"",(ROUND(SUM(E66:G66)*VLOOKUP($E$7,'Rate Lookup'!$A$3:$AD$50,27,FALSE),2))) -> 
H67: =IF(AND($E67="",$F67="",$G67=""),"",(ROUND(SUM(E67:G67)*VLOOKUP($E$7,'Rate Lookup'!$A$3:$AD$50,25,FALSE),2))) ->  | I67: =IF(AND($E67="",$F67="",$G67=""),"",(ROUND(SUM(E67:G67)*VLOOKUP($E$7,'Rate Lookup'!$A$3:$AD$50,27,FALSE),2))) -> 
H68: =IF(AND($E68="",$F68="",$G68=""),"",(ROUND(SUM(E68:G68)*VLOOKUP($E$7,'Rate Lookup'!$A$3:$AD$50,25,FALSE),2))) ->  | I68: =IF(AND($E68="",$F68="",$G68=""),"",(ROUND(SUM(E68:G68)*VLOOKUP($E$7,'Rate Lookup'!$A$3:$AD$50,27,FALSE),2))) -> 
H69: =IF(AND($E69="",$F69="",$G69=""),"",(ROUND(SUM(E69:G69)*VLOOKUP($E$7,'Rate Lookup'!$A$3:$AD$50,25,FALSE),2))) ->  | I69: =IF(AND($E69="",$F69="",$G69=""),"",(ROUND(SUM(E69:G69)*VLOOKUP($E$7,'Rate Lookup'!$A$3:$AD$50,27,FALSE),2))) -> 
H70: =IF(AND($E70="",$F70="",$G70=""),"",(ROUND(SUM(E70:G70)*VLOOKUP($E$7,'Rate Lookup'!$A$3:$AD$50,25,FALSE),2))) ->  | I70: =IF(AND($E70="",$F70="",$G70=""),"",(ROUND(SUM(E70:G70)*VLOOKUP($E$7,'Rate Lookup'!$A$3:$AD$50,27,FALSE),2))) -> 
H71: =IF(AND($E71="",$F71="",$G71=""),"",(ROUND(SUM(E71:G71)*VLOOKUP($E$7,'Rate Lookup'!$A$3:$AD$50,25,FALSE),2))) ->  | I71: =IF(AND($E71="",$F71="",$G71=""),"",(ROUND(SUM(E71:G71)*VLOOKUP($E$7,'Rate Lookup'!$A$3:$AD$50,27,FALSE),2))) -> 
H72: =IF(AND($E72="",$F72="",$G72=""),"",(ROUND(SUM(E72:G72)*VLOOKUP($E$7,'Rate Lookup'!$A$3:$AD$50,25,FALSE),2))) ->  | I72: =IF(AND($E72="",$F72="",$G72=""),"",(ROUND(SUM(E72:G72)*VLOOKUP($E$7,'Rate Lookup'!$A$3:$AD$50,27,FALSE),2))) -> 
H73: =IF(AND($E73="",$F73="",$G73=""),"",(ROUND(SUM(E73:G73)*VLOOKUP($E$7,'Rate Lookup'!$A$3:$AD$50,25,FALSE),2))) ->  | I73: =IF(AND($E73="",$F73="",$G73=""),"",(ROUND(SUM(E73:G73)*VLOOKUP($E$7,'Rate Lookup'!$A$3:$AD$50,27,FALSE),2))) -> 
H74: =IF(AND($E74="",$F74="",$G74=""),"",(ROUND(SUM(E74:G74)*VLOOKUP($E$7,'Rate Lookup'!$A$3:$AD$50,25,FALSE),2))) ->  | I74: =IF(AND($E74="",$F74="",$G74=""),"",(ROUND(SUM(E74:G74)*VLOOKUP($E$7,'Rate Lookup'!$A$3:$AD$50,27,FALSE),2))) -> 
H75: =IF(AND($E75="",$F75="",$G75=""),"",(ROUND(SUM(E75:G75)*VLOOKUP($E$7,'Rate Lookup'!$A$3:$AD$50,25,FALSE),2))) ->  | I75: =IF(AND($E75="",$F75="",$G75=""),"",(ROUND(SUM(E75:G75)*VLOOKUP($E$7,'Rate Lookup'!$A$3:$AD$50,27,FALSE),2))) -> 
H76: =IF(AND($E76="",$F76="",$G76=""),"",(ROUND(SUM(E76:G76)*VLOOKUP($E$7,'Rate Lookup'!$A$3:$AD$50,25,FALSE),2))) ->  | I76: =IF(AND($E76="",$F76="",$G76=""),"",(ROUND(SUM(E76:G76)*VLOOKUP($E$7,'Rate Lookup'!$A$3:$AD$50,27,FALSE),2))) -> 
H77: =IF(AND($E77="",$F77="",$G77=""),"",(ROUND(SUM(E77:G77)*VLOOKUP($E$7,'Rate Lookup'!$A$3:$AD$50,25,FALSE),2))) ->  | I77: =IF(AND($E77="",$F77="",$G77=""),"",(ROUND(SUM(E77:G77)*VLOOKUP($E$7,'Rate Lookup'!$A$3:$AD$50,27,FALSE),2))) -> 
H78: =IF(AND($E78="",$F78="",$G78=""),"",(ROUND(SUM(E78:G78)*VLOOKUP($E$7,'Rate Lookup'!$A$3:$AD$50,25,FALSE),2))) ->  | I78: =IF(AND($E78="",$F78="",$G78=""),"",(ROUND(SUM(E78:G78)*VLOOKUP($E$7,'Rate Lookup'!$A$3:$AD$50,27,FALSE),2))) -> 
H79: =IF(AND($E79="",$F79="",$G79=""),"",(ROUND(SUM(E79:G79)*VLOOKUP($E$7,'Rate Lookup'!$A$3:$AD$50,25,FALSE),2))) ->  | I79: =IF(AND($E79="",$F79="",$G79=""),"",(ROUND(SUM(E79:G79)*VLOOKUP($E$7,'Rate Lookup'!$A$3:$AD$50,27,FALSE),2))) -> 
H80: =IF(AND($E80="",$F80="",$G80=""),"",(ROUND(SUM(E80:G80)*VLOOKUP($E$7,'Rate Lookup'!$A$3:$AD$50,25,FALSE),2))) ->  | I80: =IF(AND($E80="",$F80="",$G80=""),"",(ROUND(SUM(E80:G80)*VLOOKUP($E$7,'Rate Lookup'!$A$3:$AD$50,27,FALSE),2))) -> 
H81: =IF(AND($E81="",$F81="",$G81=""),"",(ROUND(SUM(E81:G81)*VLOOKUP($E$7,'Rate Lookup'!$A$3:$AD$50,25,FALSE),2))) ->  | I81: =IF(AND($E81="",$F81="",$G81=""),"",(ROUND(SUM(E81:G81)*VLOOKUP($E$7,'Rate Lookup'!$A$3:$AD$50,27,FALSE),2))) -> 
H82: =IF(AND($E82="",$F82="",$G82=""),"",(ROUND(SUM(E82:G82)*VLOOKUP($E$7,'Rate Lookup'!$A$3:$AD$50,25,FALSE),2))) ->  | I82: =IF(AND($E82="",$F82="",$G82=""),"",(ROUND(SUM(E82:G82)*VLOOKUP($E$7,'Rate Lookup'!$A$3:$AD$50,27,FALSE),2))) -> 
H83: =IF(AND($E83="",$F83="",$G83=""),"",(ROUND(SUM(E83:G83)*VLOOKUP($E$7,'Rate Lookup'!$A$3:$AD$50,25,FALSE),2))) ->  | I83: =IF(AND($E83="",$F83="",$G83=""),"",(ROUND(SUM(E83:G83)*VLOOKUP($E$7,'Rate Lookup'!$A$3:$AD$50,27,FALSE),2))) -> 
H84: =IF(AND($E84="",$F84="",$G84=""),"",(ROUND(SUM(E84:G84)*VLOOKUP($E$7,'Rate Lookup'!$A$3:$AD$50,25,FALSE),2))) ->  | I84: =IF(AND($E84="",$F84="",$G84=""),"",(ROUND(SUM(E84:G84)*VLOOKUP($E$7,'Rate Lookup'!$A$3:$AD$50,27,FALSE),2))) -> 
H85: =IF(AND($E85="",$F85="",$G85=""),"",(ROUND(SUM(E85:G85)*VLOOKUP($E$7,'Rate Lookup'!$A$3:$AD$50,25,FALSE),2))) ->  | I85: =IF(AND($E85="",$F85="",$G85=""),"",(ROUND(SUM(E85:G85)*VLOOKUP($E$7,'Rate Lookup'!$A$3:$AD$50,27,FALSE),2))) -> 
H86: =IF(AND($E86="",$F86="",$G86=""),"",(ROUND(SUM(E86:G86)*VLOOKUP($E$7,'Rate Lookup'!$A$3:$AD$50,25,FALSE),2))) ->  | I86: =IF(AND($E86="",$F86="",$G86=""),"",(ROUND(SUM(E86:G86)*VLOOKUP($E$7,'Rate Lookup'!$A$3:$AD$50,27,FALSE),2))) -> 
H87: =IF(AND($E87="",$F87="",$G87=""),"",(ROUND(SUM(E87:G87)*VLOOKUP($E$7,'Rate Lookup'!$A$3:$AD$50,25,FALSE),2))) ->  | I87: =IF(AND($E87="",$F87="",$G87=""),"",(ROUND(SUM(E87:G87)*VLOOKUP($E$7,'Rate Lookup'!$A$3:$AD$50,27,FALSE),2))) -> 
H88: =IF(AND($E88="",$F88="",$G88=""),"",(ROUND(SUM(E88:G88)*VLOOKUP($E$7,'Rate Lookup'!$A$3:$AD$50,25,FALSE),2))) ->  | I88: =IF(AND($E88="",$F88="",$G88=""),"",(ROUND(SUM(E88:G88)*VLOOKUP($E$7,'Rate Lookup'!$A$3:$AD$50,27,FALSE),2))) -> 
H89: =IF(AND($E89="",$F89="",$G89=""),"",(ROUND(SUM(E89:G89)*VLOOKUP($E$7,'Rate Lookup'!$A$3:$AD$50,25,FALSE),2))) ->  | I89: =IF(AND($E89="",$F89="",$G89=""),"",(ROUND(SUM(E89:G89)*VLOOKUP($E$7,'Rate Lookup'!$A$3:$AD$50,27,FALSE),2))) -> 
H90: =IF(AND($E90="",$F90="",$G90=""),"",(ROUND(SUM(E90:G90)*VLOOKUP($E$7,'Rate Lookup'!$A$3:$AD$50,25,FALSE),2))) ->  | I90: =IF(AND($E90="",$F90="",$G90=""),"",(ROUND(SUM(E90:G90)*VLOOKUP($E$7,'Rate Lookup'!$A$3:$AD$50,27,FALSE),2))) -> 
H91: =IF(AND($E91="",$F91="",$G91=""),"",(ROUND(SUM(E91:G91)*VLOOKUP($E$7,'Rate Lookup'!$A$3:$AD$50,25,FALSE),2))) ->  | I91: =IF(AND($E91="",$F91="",$G91=""),"",(ROUND(SUM(E91:G91)*VLOOKUP($E$7,'Rate Lookup'!$A$3:$AD$50,27,FALSE),2))) -> 
H92: =IF(AND($E92="",$F92="",$G92=""),"",(ROUND(SUM(E92:G92)*VLOOKUP($E$7,'Rate Lookup'!$A$3:$AD$50,25,FALSE),2))) ->  | I92: =IF(AND($E92="",$F92="",$G92=""),"",(ROUND(SUM(E92:G92)*VLOOKUP($E$7,'Rate Lookup'!$A$3:$AD$50,27,FALSE),2))) -> 
H93: =IF(AND($E93="",$F93="",$G93=""),"",(ROUND(SUM(E93:G93)*VLOOKUP($E$7,'Rate Lookup'!$A$3:$AD$50,25,FALSE),2))) ->  | I93: =IF(AND($E93="",$F93="",$G93=""),"",(ROUND(SUM(E93:G93)*VLOOKUP($E$7,'Rate Lookup'!$A$3:$AD$50,27,FALSE),2))) -> 
H94: =IF(AND($E94="",$F94="",$G94=""),"",(ROUND(SUM(E94:G94)*VLOOKUP($E$7,'Rate Lookup'!$A$3:$AD$50,25,FALSE),2))) ->  | I94: =IF(AND($E94="",$F94="",$G94=""),"",(ROUND(SUM(E94:G94)*VLOOKUP($E$7,'Rate Lookup'!$A$3:$AD$50,27,FALSE),2))) -> 
H95: =IF(AND($E95="",$F95="",$G95=""),"",(ROUND(SUM(E95:G95)*VLOOKUP($E$7,'Rate Lookup'!$A$3:$AD$50,25,FALSE),2))) ->  | I95: =IF(AND($E95="",$F95="",$G95=""),"",(ROUND(SUM(E95:G95)*VLOOKUP($E$7,'Rate Lookup'!$A$3:$AD$50,27,FALSE),2))) -> 
H96: =IF(AND($E96="",$F96="",$G96=""),"",(ROUND(SUM(E96:G96)*VLOOKUP($E$7,'Rate Lookup'!$A$3:$AD$50,25,FALSE),2))) ->  | I96: =IF(AND($E96="",$F96="",$G96=""),"",(ROUND(SUM(E96:G96)*VLOOKUP($E$7,'Rate Lookup'!$A$3:$AD$50,27,FALSE),2))) -> 
H97: =IF(AND($E97="",$F97="",$G97=""),"",(ROUND(SUM(E97:G97)*VLOOKUP($E$7,'Rate Lookup'!$A$3:$AD$50,25,FALSE),2))) ->  | I97: =IF(AND($E97="",$F97="",$G97=""),"",(ROUND(SUM(E97:G97)*VLOOKUP($E$7,'Rate Lookup'!$A$3:$AD$50,27,FALSE),2))) -> 
H98: =IF(AND($E98="",$F98="",$G98=""),"",(ROUND(SUM(E98:G98)*VLOOKUP($E$7,'Rate Lookup'!$A$3:$AD$50,25,FALSE),2))) ->  | I98: =IF(AND($E98="",$F98="",$G98=""),"",(ROUND(SUM(E98:G98)*VLOOKUP($E$7,'Rate Lookup'!$A$3:$AD$50,27,FALSE),2))) -> 
H99: =IF(AND($E99="",$F99="",$G99=""),"",(ROUND(SUM(E99:G99)*VLOOKUP($E$7,'Rate Lookup'!$A$3:$AD$50,25,FALSE),2))) ->  | I99: =IF(AND($E99="",$F99="",$G99=""),"",(ROUND(SUM(E99:G99)*VLOOKUP($E$7,'Rate Lookup'!$A$3:$AD$50,27,FALSE),2))) -> 
H100: =IF(AND($E100="",$F100="",$G100=""),"",(ROUND(SUM(E100:G100)*VLOOKUP($E$7,'Rate Lookup'!$A$3:$AD$50,25,FALSE),2))) ->  | I100: =IF(AND($E100="",$F100="",$G100=""),"",(ROUND(SUM(E100:G100)*VLOOKUP($E$7,'Rate Lookup'!$A$3:$AD$50,27,FALSE),2))) -> 
H101: =IF(AND($E101="",$F101="",$G101=""),"",(ROUND(SUM(E101:G101)*VLOOKUP($E$7,'Rate Lookup'!$A$3:$AD$50,25,FALSE),2))) ->  | I101: =IF(AND($E101="",$F101="",$G101=""),"",(ROUND(SUM(E101:G101)*VLOOKUP($E$7,'Rate Lookup'!$A$3:$AD$50,27,FALSE),2))) -> 
H102: =IF(AND($E102="",$F102="",$G102=""),"",(ROUND(SUM(E102:G102)*VLOOKUP($E$7,'Rate Lookup'!$A$3:$AD$50,25,FALSE),2))) ->  | I102: =IF(AND($E102="",$F102="",$G102=""),"",(ROUND(SUM(E102:G102)*VLOOKUP($E$7,'Rate Lookup'!$A$3:$AD$50,27,FALSE),2))) -> 
H103: =IF(AND($E103="",$F103="",$G103=""),"",(ROUND(SUM(E103:G103)*VLOOKUP($E$7,'Rate Lookup'!$A$3:$AD$50,25,FALSE),2))) ->  | I103: =IF(AND($E103="",$F103="",$G103=""),"",(ROUND(SUM(E103:G103)*VLOOKUP($E$7,'Rate Lookup'!$A$3:$AD$50,27,FALSE),2))) -> 
H104: =IF(AND($E104="",$F104="",$G104=""),"",(ROUND(SUM(E104:G104)*VLOOKUP($E$7,'Rate Lookup'!$A$3:$AD$50,25,FALSE),2))) ->  | I104: =IF(AND($E104="",$F104="",$G104=""),"",(ROUND(SUM(E104:G104)*VLOOKUP($E$7,'Rate Lookup'!$A$3:$AD$50,27,FALSE),2))) -> 
H105: =IF(AND($E105="",$F105="",$G105=""),"",(ROUND(SUM(E105:G105)*VLOOKUP($E$7,'Rate Lookup'!$A$3:$AD$50,25,FALSE),2))) ->  | I105: =IF(AND($E105="",$F105="",$G105=""),"",(ROUND(SUM(E105:G105)*VLOOKUP($E$7,'Rate Lookup'!$A$3:$AD$50,27,FALSE),2))) -> 
H106: =IF(AND($E106="",$F106="",$G106=""),"",(ROUND(SUM(E106:G106)*VLOOKUP($E$7,'Rate Lookup'!$A$3:$AD$50,25,FALSE),2))) ->  | I106: =IF(AND($E106="",$F106="",$G106=""),"",(ROUND(SUM(E106:G106)*VLOOKUP($E$7,'Rate Lookup'!$A$3:$AD$50,27,FALSE),2))) -> 
H107: =IF(AND($E107="",$F107="",$G107=""),"",(ROUND(SUM(E107:G107)*VLOOKUP($E$7,'Rate Lookup'!$A$3:$AD$50,25,FALSE),2))) ->  | I107: =IF(AND($E107="",$F107="",$G107=""),"",(ROUND(SUM(E107:G107)*VLOOKUP($E$7,'Rate Lookup'!$A$3:$AD$50,27,FALSE),2))) -> 
H108: =IF(AND($E108="",$F108="",$G108=""),"",(ROUND(SUM(E108:G108)*VLOOKUP($E$7,'Rate Lookup'!$A$3:$AD$50,25,FALSE),2))) ->  | I108: =IF(AND($E108="",$F108="",$G108=""),"",(ROUND(SUM(E108:G108)*VLOOKUP($E$7,'Rate Lookup'!$A$3:$AD$50,27,FALSE),2))) -> 
H109: =IF(AND($E109="",$F109="",$G109=""),"",(ROUND(SUM(E109:G109)*VLOOKUP($E$7,'Rate Lookup'!$A$3:$AD$50,25,FALSE),2))) ->  | I109: =IF(AND($E109="",$F109="",$G109=""),"",(ROUND(SUM(E109:G109)*VLOOKUP($E$7,'Rate Lookup'!$A$3:$AD$50,27,FALSE),2))) -> 
H110: =IF(AND($E110="",$F110="",$G110=""),"",(ROUND(SUM(E110:G110)*VLOOKUP($E$7,'Rate Lookup'!$A$3:$AD$50,25,FALSE),2))) ->  | I110: =IF(AND($E110="",$F110="",$G110=""),"",(ROUND(SUM(E110:G110)*VLOOKUP($E$7,'Rate Lookup'!$A$3:$AD$50,27,FALSE),2))) -> 
H111: =IF(AND($E111="",$F111="",$G111=""),"",(ROUND(SUM(E111:G111)*VLOOKUP($E$7,'Rate Lookup'!$A$3:$AD$50,25,FALSE),2))) ->  | I111: =IF(AND($E111="",$F111="",$G111=""),"",(ROUND(SUM(E111:G111)*VLOOKUP($E$7,'Rate Lookup'!$A$3:$AD$50,27,FALSE),2))) -> 
H112: =IF(AND($E112="",$F112="",$G112=""),"",(ROUND(SUM(E112:G112)*VLOOKUP($E$7,'Rate Lookup'!$A$3:$AD$50,25,FALSE),2))) ->  | I112: =IF(AND($E112="",$F112="",$G112=""),"",(ROUND(SUM(E112:G112)*VLOOKUP($E$7,'Rate Lookup'!$A$3:$AD$50,27,FALSE),2))) -> 
H113: =IF(AND($E113="",$F113="",$G113=""),"",(ROUND(SUM(E113:G113)*VLOOKUP($E$7,'Rate Lookup'!$A$3:$AD$50,25,FALSE),2))) ->  | I113: =IF(AND($E113="",$F113="",$G113=""),"",(ROUND(SUM(E113:G113)*VLOOKUP($E$7,'Rate Lookup'!$A$3:$AD$50,27,FALSE),2))) -> 
H114: =IF(AND($E114="",$F114="",$G114=""),"",(ROUND(SUM(E114:G114)*VLOOKUP($E$7,'Rate Lookup'!$A$3:$AD$50,25,FALSE),2))) ->  | I114: =IF(AND($E114="",$F114="",$G114=""),"",(ROUND(SUM(E114:G114)*VLOOKUP($E$7,'Rate Lookup'!$A$3:$AD$50,27,FALSE),2))) -> 
H115: =IF(AND($E115="",$F115="",$G115=""),"",(ROUND(SUM(E115:G115)*VLOOKUP($E$7,'Rate Lookup'!$A$3:$AD$50,25,FALSE),2))) ->  | I115: =IF(AND($E115="",$F115="",$G115=""),"",(ROUND(SUM(E115:G115)*VLOOKUP($E$7,'Rate Lookup'!$A$3:$AD$50,27,FALSE),2))) -> 
H116: =IF(AND($E116="",$F116="",$G116=""),"",(ROUND(SUM(E116:G116)*VLOOKUP($E$7,'Rate Lookup'!$A$3:$AD$50,25,FALSE),2))) ->  | I116: =IF(AND($E116="",$F116="",$G116=""),"",(ROUND(SUM(E116:G116)*VLOOKUP($E$7,'Rate Lookup'!$A$3:$AD$50,27,FALSE),2))) -> 
H117: =IF(AND($E117="",$F117="",$G117=""),"",(ROUND(SUM(E117:G117)*VLOOKUP($E$7,'Rate Lookup'!$A$3:$AD$50,25,FALSE),2))) ->  | I117: =IF(AND($E117="",$F117="",$G117=""),"",(ROUND(SUM(E117:G117)*VLOOKUP($E$7,'Rate Lookup'!$A$3:$AD$50,27,FALSE),2))) -> 
H118: =IF(AND($E118="",$F118="",$G118=""),"",(ROUND(SUM(E118:G118)*VLOOKUP($E$7,'Rate Lookup'!$A$3:$AD$50,25,FALSE),2))) ->  | I118: =IF(AND($E118="",$F118="",$G118=""),"",(ROUND(SUM(E118:G118)*VLOOKUP($E$7,'Rate Lookup'!$A$3:$AD$50,27,FALSE),2))) -> 
H119: =IF(AND($E119="",$F119="",$G119=""),"",(ROUND(SUM(E119:G119)*VLOOKUP($E$7,'Rate Lookup'!$A$3:$AD$50,25,FALSE),2))) ->  | I119: =IF(AND($E119="",$F119="",$G119=""),"",(ROUND(SUM(E119:G119)*VLOOKUP($E$7,'Rate Lookup'!$A$3:$AD$50,27,FALSE),2))) -> 
H120: =IF(AND($E120="",$F120="",$G120=""),"",(ROUND(SUM(E120:G120)*VLOOKUP($E$7,'Rate Lookup'!$A$3:$AD$50,25,FALSE),2))) ->  | I120: =IF(AND($E120="",$F120="",$G120=""),"",(ROUND(SUM(E120:G120)*VLOOKUP($E$7,'Rate Lookup'!$A$3:$AD$50,27,FALSE),2))) -> 
H121: =IF(AND($E121="",$F121="",$G121=""),"",(ROUND(SUM(E121:G121)*VLOOKUP($E$7,'Rate Lookup'!$A$3:$AD$50,25,FALSE),2))) ->  | I121: =IF(AND($E121="",$F121="",$G121=""),"",(ROUND(SUM(E121:G121)*VLOOKUP($E$7,'Rate Lookup'!$A$3:$AD$50,27,FALSE),2))) -> 
H122: =IF(AND($E122="",$F122="",$G122=""),"",(ROUND(SUM(E122:G122)*VLOOKUP($E$7,'Rate Lookup'!$A$3:$AD$50,25,FALSE),2))) ->  | I122: =IF(AND($E122="",$F122="",$G122=""),"",(ROUND(SUM(E122:G122)*VLOOKUP($E$7,'Rate Lookup'!$A$3:$AD$50,27,FALSE),2))) -> 
H123: =IF(AND($E123="",$F123="",$G123=""),"",(ROUND(SUM(E123:G123)*VLOOKUP($E$7,'Rate Lookup'!$A$3:$AD$50,25,FALSE),2))) ->  | I123: =IF(AND($E123="",$F123="",$G123=""),"",(ROUND(SUM(E123:G123)*VLOOKUP($E$7,'Rate Lookup'!$A$3:$AD$50,27,FALSE),2))) -> 
H124: =IF(AND($E124="",$F124="",$G124=""),"",(ROUND(SUM(E124:G124)*VLOOKUP($E$7,'Rate Lookup'!$A$3:$AD$50,25,FALSE),2))) ->  | I124: =IF(AND($E124="",$F124="",$G124=""),"",(ROUND(SUM(E124:G124)*VLOOKUP($E$7,'Rate Lookup'!$A$3:$AD$50,27,FALSE),2))) -> 
H125: =IF(AND($E125="",$F125="",$G125=""),"",(ROUND(SUM(E125:G125)*VLOOKUP($E$7,'Rate Lookup'!$A$3:$AD$50,25,FALSE),2))) ->  | I125: =IF(AND($E125="",$F125="",$G125=""),"",(ROUND(SUM(E125:G125)*VLOOKUP($E$7,'Rate Lookup'!$A$3:$AD$50,27,FALSE),2))) -> 
H126: =IF(AND($E126="",$F126="",$G126=""),"",(ROUND(SUM(E126:G126)*VLOOKUP($E$7,'Rate Lookup'!$A$3:$AD$50,25,FALSE),2))) ->  | I126: =IF(AND($E126="",$F126="",$G126=""),"",(ROUND(SUM(E126:G126)*VLOOKUP($E$7,'Rate Lookup'!$A$3:$AD$50,27,FALSE),2))) -> 
H127: =IF(AND($E127="",$F127="",$G127=""),"",(ROUND(SUM(E127:G127)*VLOOKUP($E$7,'Rate Lookup'!$A$3:$AD$50,25,FALSE),2))) ->  | I127: =IF(AND($E127="",$F127="",$G127=""),"",(ROUND(SUM(E127:G127)*VLOOKUP($E$7,'Rate Lookup'!$A$3:$AD$50,27,FALSE),2))) -> 
H128: =IF(AND($E128="",$F128="",$G128=""),"",(ROUND(SUM(E128:G128)*VLOOKUP($E$7,'Rate Lookup'!$A$3:$AD$50,25,FALSE),2))) ->  | I128: =IF(AND($E128="",$F128="",$G128=""),"",(ROUND(SUM(E128:G128)*VLOOKUP($E$7,'Rate Lookup'!$A$3:$AD$50,27,FALSE),2))) -> 
H129: =IF(AND($E129="",$F129="",$G129=""),"",(ROUND(SUM(E129:G129)*VLOOKUP($E$7,'Rate Lookup'!$A$3:$AD$50,25,FALSE),2))) ->  | I129: =IF(AND($E129="",$F129="",$G129=""),"",(ROUND(SUM(E129:G129)*VLOOKUP($E$7,'Rate Lookup'!$A$3:$AD$50,27,FALSE),2))) -> 
H130: =IF(AND($E130="",$F130="",$G130=""),"",(ROUND(SUM(E130:G130)*VLOOKUP($E$7,'Rate Lookup'!$A$3:$AD$50,25,FALSE),2))) ->  | I130: =IF(AND($E130="",$F130="",$G130=""),"",(ROUND(SUM(E130:G130)*VLOOKUP($E$7,'Rate Lookup'!$A$3:$AD$50,27,FALSE),2))) -> 
H131: =IF(AND($E131="",$F131="",$G131=""),"",(ROUND(SUM(E131:G131)*VLOOKUP($E$7,'Rate Lookup'!$A$3:$AD$50,25,FALSE),2))) ->  | I131: =IF(AND($E131="",$F131="",$G131=""),"",(ROUND(SUM(E131:G131)*VLOOKUP($E$7,'Rate Lookup'!$A$3:$AD$50,27,FALSE),2))) -> 
H132: =IF(AND($E132="",$F132="",$G132=""),"",(ROUND(SUM(E132:G132)*VLOOKUP($E$7,'Rate Lookup'!$A$3:$AD$50,25,FALSE),2))) ->  | I132: =IF(AND($E132="",$F132="",$G132=""),"",(ROUND(SUM(E132:G132)*VLOOKUP($E$7,'Rate Lookup'!$A$3:$AD$50,27,FALSE),2))) -> 
H133: =IF(AND($E133="",$F133="",$G133=""),"",(ROUND(SUM(E133:G133)*VLOOKUP($E$7,'Rate Lookup'!$A$3:$AD$50,25,FALSE),2))) ->  | I133: =IF(AND($E133="",$F133="",$G133=""),"",(ROUND(SUM(E133:G133)*VLOOKUP($E$7,'Rate Lookup'!$A$3:$AD$50,27,FALSE),2))) -> 
H134: =IF(AND($E134="",$F134="",$G134=""),"",(ROUND(SUM(E134:G134)*VLOOKUP($E$7,'Rate Lookup'!$A$3:$AD$50,25,FALSE),2))) ->  | I134: =IF(AND($E134="",$F134="",$G134=""),"",(ROUND(SUM(E134:G134)*VLOOKUP($E$7,'Rate Lookup'!$A$3:$AD$50,27,FALSE),2))) -> 
H135: =IF(AND($E135="",$F135="",$G135=""),"",(ROUND(SUM(E135:G135)*VLOOKUP($E$7,'Rate Lookup'!$A$3:$AD$50,25,FALSE),2))) ->  | I135: =IF(AND($E135="",$F135="",$G135=""),"",(ROUND(SUM(E135:G135)*VLOOKUP($E$7,'Rate Lookup'!$A$3:$AD$50,27,FALSE),2))) -> 
H136: =IF(AND($E136="",$F136="",$G136=""),"",(ROUND(SUM(E136:G136)*VLOOKUP($E$7,'Rate Lookup'!$A$3:$AD$50,25,FALSE),2))) ->  | I136: =IF(AND($E136="",$F136="",$G136=""),"",(ROUND(SUM(E136:G136)*VLOOKUP($E$7,'Rate Lookup'!$A$3:$AD$50,27,FALSE),2))) -> 
H137: =IF(AND($E137="",$F137="",$G137=""),"",(ROUND(SUM(E137:G137)*VLOOKUP($E$7,'Rate Lookup'!$A$3:$AD$50,25,FALSE),2))) ->  | I137: =IF(AND($E137="",$F137="",$G137=""),"",(ROUND(SUM(E137:G137)*VLOOKUP($E$7,'Rate Lookup'!$A$3:$AD$50,27,FALSE),2))) -> 
H138: =IF(AND($E138="",$F138="",$G138=""),"",(ROUND(SUM(E138:G138)*VLOOKUP($E$7,'Rate Lookup'!$A$3:$AD$50,25,FALSE),2))) ->  | I138: =IF(AND($E138="",$F138="",$G138=""),"",(ROUND(SUM(E138:G138)*VLOOKUP($E$7,'Rate Lookup'!$A$3:$AD$50,27,FALSE),2))) -> 
H139: =IF(AND($E139="",$F139="",$G139=""),"",(ROUND(SUM(E139:G139)*VLOOKUP($E$7,'Rate Lookup'!$A$3:$AD$50,25,FALSE),2))) ->  | I139: =IF(AND($E139="",$F139="",$G139=""),"",(ROUND(SUM(E139:G139)*VLOOKUP($E$7,'Rate Lookup'!$A$3:$AD$50,27,FALSE),2))) -> 
H140: =IF(AND($E140="",$F140="",$G140=""),"",(ROUND(SUM(E140:G140)*VLOOKUP($E$7,'Rate Lookup'!$A$3:$AD$50,25,FALSE),2))) ->  | I140: =IF(AND($E140="",$F140="",$G140=""),"",(ROUND(SUM(E140:G140)*VLOOKUP($E$7,'Rate Lookup'!$A$3:$AD$50,27,FALSE),2))) -> 
H141: =IF(AND($E141="",$F141="",$G141=""),"",(ROUND(SUM(E141:G141)*VLOOKUP($E$7,'Rate Lookup'!$A$3:$AD$50,25,FALSE),2))) ->  | I141: =IF(AND($E141="",$F141="",$G141=""),"",(ROUND(SUM(E141:G141)*VLOOKUP($E$7,'Rate Lookup'!$A$3:$AD$50,27,FALSE),2))) -> 
H142: =IF(AND($E142="",$F142="",$G142=""),"",(ROUND(SUM(E142:G142)*VLOOKUP($E$7,'Rate Lookup'!$A$3:$AD$50,25,FALSE),2))) ->  | I142: =IF(AND($E142="",$F142="",$G142=""),"",(ROUND(SUM(E142:G142)*VLOOKUP($E$7,'Rate Lookup'!$A$3:$AD$50,27,FALSE),2))) -> 
H143: =IF(AND($E143="",$F143="",$G143=""),"",(ROUND(SUM(E143:G143)*VLOOKUP($E$7,'Rate Lookup'!$A$3:$AD$50,25,FALSE),2))) ->  | I143: =IF(AND($E143="",$F143="",$G143=""),"",(ROUND(SUM(E143:G143)*VLOOKUP($E$7,'Rate Lookup'!$A$3:$AD$50,27,FALSE),2))) -> 
H144: =IF(AND($E144="",$F144="",$G144=""),"",(ROUND(SUM(E144:G144)*VLOOKUP($E$7,'Rate Lookup'!$A$3:$AD$50,25,FALSE),2))) ->  | I144: =IF(AND($E144="",$F144="",$G144=""),"",(ROUND(SUM(E144:G144)*VLOOKUP($E$7,'Rate Lookup'!$A$3:$AD$50,27,FALSE),2))) -> 
H145: =IF(AND($E145="",$F145="",$G145=""),"",(ROUND(SUM(E145:G145)*VLOOKUP($E$7,'Rate Lookup'!$A$3:$AD$50,25,FALSE),2))) ->  | I145: =IF(AND($E145="",$F145="",$G145=""),"",(ROUND(SUM(E145:G145)*VLOOKUP($E$7,'Rate Lookup'!$A$3:$AD$50,27,FALSE),2))) -> 
H146: =IF(AND($E146="",$F146="",$G146=""),"",(ROUND(SUM(E146:G146)*VLOOKUP($E$7,'Rate Lookup'!$A$3:$AD$50,25,FALSE),2))) ->  | I146: =IF(AND($E146="",$F146="",$G146=""),"",(ROUND(SUM(E146:G146)*VLOOKUP($E$7,'Rate Lookup'!$A$3:$AD$50,27,FALSE),2))) -> 
H147: =IF(AND($E147="",$F147="",$G147=""),"",(ROUND(SUM(E147:G147)*VLOOKUP($E$7,'Rate Lookup'!$A$3:$AD$50,25,FALSE),2))) ->  | I147: =IF(AND($E147="",$F147="",$G147=""),"",(ROUND(SUM(E147:G147)*VLOOKUP($E$7,'Rate Lookup'!$A$3:$AD$50,27,FALSE),2))) -> 
H148: =IF(AND($E148="",$F148="",$G148=""),"",(ROUND(SUM(E148:G148)*VLOOKUP($E$7,'Rate Lookup'!$A$3:$AD$50,25,FALSE),2))) ->  | I148: =IF(AND($E148="",$F148="",$G148=""),"",(ROUND(SUM(E148:G148)*VLOOKUP($E$7,'Rate Lookup'!$A$3:$AD$50,27,FALSE),2))) -> 
H149: =IF(AND($E149="",$F149="",$G149=""),"",(ROUND(SUM(E149:G149)*VLOOKUP($E$7,'Rate Lookup'!$A$3:$AD$50,25,FALSE),2))) ->  | I149: =IF(AND($E149="",$F149="",$G149=""),"",(ROUND(SUM(E149:G149)*VLOOKUP($E$7,'Rate Lookup'!$A$3:$AD$50,27,FALSE),2))) -> 
H150: =IF(AND($E150="",$F150="",$G150=""),"",(ROUND(SUM(E150:G150)*VLOOKUP($E$7,'Rate Lookup'!$A$3:$AD$50,25,FALSE),2))) ->  | I150: =IF(AND($E150="",$F150="",$G150=""),"",(ROUND(SUM(E150:G150)*VLOOKUP($E$7,'Rate Lookup'!$A$3:$AD$50,27,FALSE),2))) -> 
H151: =IF(AND($E151="",$F151="",$G151=""),"",(ROUND(SUM(E151:G151)*VLOOKUP($E$7,'Rate Lookup'!$A$3:$AD$50,25,FALSE),2))) ->  | I151: =IF(AND($E151="",$F151="",$G151=""),"",(ROUND(SUM(E151:G151)*VLOOKUP($E$7,'Rate Lookup'!$A$3:$AD$50,27,FALSE),2))) -> 
H152: =IF(AND($E152="",$F152="",$G152=""),"",(ROUND(SUM(E152:G152)*VLOOKUP($E$7,'Rate Lookup'!$A$3:$AD$50,25,FALSE),2))) ->  | I152: =IF(AND($E152="",$F152="",$G152=""),"",(ROUND(SUM(E152:G152)*VLOOKUP($E$7,'Rate Lookup'!$A$3:$AD$50,27,FALSE),2))) -> 
H153: =IF(AND($E153="",$F153="",$G153=""),"",(ROUND(SUM(E153:G153)*VLOOKUP($E$7,'Rate Lookup'!$A$3:$AD$50,25,FALSE),2))) ->  | I153: =IF(AND($E153="",$F153="",$G153=""),"",(ROUND(SUM(E153:G153)*VLOOKUP($E$7,'Rate Lookup'!$A$3:$AD$50,27,FALSE),2))) -> 
H154: =IF(AND($E154="",$F154="",$G154=""),"",(ROUND(SUM(E154:G154)*VLOOKUP($E$7,'Rate Lookup'!$A$3:$AD$50,25,FALSE),2))) ->  | I154: =IF(AND($E154="",$F154="",$G154=""),"",(ROUND(SUM(E154:G154)*VLOOKUP($E$7,'Rate Lookup'!$A$3:$AD$50,27,FALSE),2))) -> 
H155: =IF(AND($E155="",$F155="",$G155=""),"",(ROUND(SUM(E155:G155)*VLOOKUP($E$7,'Rate Lookup'!$A$3:$AD$50,25,FALSE),2))) ->  | I155: =IF(AND($E155="",$F155="",$G155=""),"",(ROUND(SUM(E155:G155)*VLOOKUP($E$7,'Rate Lookup'!$A$3:$AD$50,27,FALSE),2))) -> 
H156: =IF(AND($E156="",$F156="",$G156=""),"",(ROUND(SUM(E156:G156)*VLOOKUP($E$7,'Rate Lookup'!$A$3:$AD$50,25,FALSE),2))) ->  | I156: =IF(AND($E156="",$F156="",$G156=""),"",(ROUND(SUM(E156:G156)*VLOOKUP($E$7,'Rate Lookup'!$A$3:$AD$50,27,FALSE),2))) -> 
H157: =IF(AND($E157="",$F157="",$G157=""),"",(ROUND(SUM(E157:G157)*VLOOKUP($E$7,'Rate Lookup'!$A$3:$AD$50,25,FALSE),2))) ->  | I157: =IF(AND($E157="",$F157="",$G157=""),"",(ROUND(SUM(E157:G157)*VLOOKUP($E$7,'Rate Lookup'!$A$3:$AD$50,27,FALSE),2))) -> 
H158: =IF(AND($E158="",$F158="",$G158=""),"",(ROUND(SUM(E158:G158)*VLOOKUP($E$7,'Rate Lookup'!$A$3:$AD$50,25,FALSE),2))) ->  | I158: =IF(AND($E158="",$F158="",$G158=""),"",(ROUND(SUM(E158:G158)*VLOOKUP($E$7,'Rate Lookup'!$A$3:$AD$50,27,FALSE),2))) -> 
H159: =IF(AND($E159="",$F159="",$G159=""),"",(ROUND(SUM(E159:G159)*VLOOKUP($E$7,'Rate Lookup'!$A$3:$AD$50,25,FALSE),2))) ->  | I159: =IF(AND($E159="",$F159="",$G159=""),"",(ROUND(SUM(E159:G159)*VLOOKUP($E$7,'Rate Lookup'!$A$3:$AD$50,27,FALSE),2))) -> 
H160: =IF(AND($E160="",$F160="",$G160=""),"",(ROUND(SUM(E160:G160)*VLOOKUP($E$7,'Rate Lookup'!$A$3:$AD$50,25,FALSE),2))) ->  | I160: =IF(AND($E160="",$F160="",$G160=""),"",(ROUND(SUM(E160:G160)*VLOOKUP($E$7,'Rate Lookup'!$A$3:$AD$50,27,FALSE),2))) -> 
H161: =IF(AND($E161="",$F161="",$G161=""),"",(ROUND(SUM(E161:G161)*VLOOKUP($E$7,'Rate Lookup'!$A$3:$AD$50,25,FALSE),2))) ->  | I161: =IF(AND($E161="",$F161="",$G161=""),"",(ROUND(SUM(E161:G161)*VLOOKUP($E$7,'Rate Lookup'!$A$3:$AD$50,27,FALSE),2))) -> 
H162: =IF(AND($E162="",$F162="",$G162=""),"",(ROUND(SUM(E162:G162)*VLOOKUP($E$7,'Rate Lookup'!$A$3:$AD$50,25,FALSE),2))) ->  | I162: =IF(AND($E162="",$F162="",$G162=""),"",(ROUND(SUM(E162:G162)*VLOOKUP($E$7,'Rate Lookup'!$A$3:$AD$50,27,FALSE),2))) -> 
H163: =IF(AND($E163="",$F163="",$G163=""),"",(ROUND(SUM(E163:G163)*VLOOKUP($E$7,'Rate Lookup'!$A$3:$AD$50,25,FALSE),2))) ->  | I163: =IF(AND($E163="",$F163="",$G163=""),"",(ROUND(SUM(E163:G163)*VLOOKUP($E$7,'Rate Lookup'!$A$3:$AD$50,27,FALSE),2))) -> 
H164: =IF(AND($E164="",$F164="",$G164=""),"",(ROUND(SUM(E164:G164)*VLOOKUP($E$7,'Rate Lookup'!$A$3:$AD$50,25,FALSE),2))) ->  | I164: =IF(AND($E164="",$F164="",$G164=""),"",(ROUND(SUM(E164:G164)*VLOOKUP($E$7,'Rate Lookup'!$A$3:$AD$50,27,FALSE),2))) -> 
H165: =IF(AND($E165="",$F165="",$G165=""),"",(ROUND(SUM(E165:G165)*VLOOKUP($E$7,'Rate Lookup'!$A$3:$AD$50,25,FALSE),2))) ->  | I165: =IF(AND($E165="",$F165="",$G165=""),"",(ROUND(SUM(E165:G165)*VLOOKUP($E$7,'Rate Lookup'!$A$3:$AD$50,27,FALSE),2))) -> 
H166: =IF(AND($E166="",$F166="",$G166=""),"",(ROUND(SUM(E166:G166)*VLOOKUP($E$7,'Rate Lookup'!$A$3:$AD$50,25,FALSE),2))) ->  | I166: =IF(AND($E166="",$F166="",$G166=""),"",(ROUND(SUM(E166:G166)*VLOOKUP($E$7,'Rate Lookup'!$A$3:$AD$50,27,FALSE),2))) -> 
H167: =IF(AND($E167="",$F167="",$G167=""),"",(ROUND(SUM(E167:G167)*VLOOKUP($E$7,'Rate Lookup'!$A$3:$AD$50,25,FALSE),2))) ->  | I167: =IF(AND($E167="",$F167="",$G167=""),"",(ROUND(SUM(E167:G167)*VLOOKUP($E$7,'Rate Lookup'!$A$3:$AD$50,27,FALSE),2))) -> 
H168: =IF(AND($E168="",$F168="",$G168=""),"",(ROUND(SUM(E168:G168)*VLOOKUP($E$7,'Rate Lookup'!$A$3:$AD$50,25,FALSE),2))) ->  | I168: =IF(AND($E168="",$F168="",$G168=""),"",(ROUND(SUM(E168:G168)*VLOOKUP($E$7,'Rate Lookup'!$A$3:$AD$50,27,FALSE),2))) -> 
H169: =IF(AND($E169="",$F169="",$G169=""),"",(ROUND(SUM(E169:G169)*VLOOKUP($E$7,'Rate Lookup'!$A$3:$AD$50,25,FALSE),2))) ->  | I169: =IF(AND($E169="",$F169="",$G169=""),"",(ROUND(SUM(E169:G169)*VLOOKUP($E$7,'Rate Lookup'!$A$3:$AD$50,27,FALSE),2))) -> 
H170: =IF(AND($E170="",$F170="",$G170=""),"",(ROUND(SUM(E170:G170)*VLOOKUP($E$7,'Rate Lookup'!$A$3:$AD$50,25,FALSE),2))) ->  | I170: =IF(AND($E170="",$F170="",$G170=""),"",(ROUND(SUM(E170:G170)*VLOOKUP($E$7,'Rate Lookup'!$A$3:$AD$50,27,FALSE),2))) -> 
H171: =IF(AND($E171="",$F171="",$G171=""),"",(ROUND(SUM(E171:G171)*VLOOKUP($E$7,'Rate Lookup'!$A$3:$AD$50,25,FALSE),2))) ->  | I171: =IF(AND($E171="",$F171="",$G171=""),"",(ROUND(SUM(E171:G171)*VLOOKUP($E$7,'Rate Lookup'!$A$3:$AD$50,27,FALSE),2))) -> 
H172: =IF(AND($E172="",$F172="",$G172=""),"",(ROUND(SUM(E172:G172)*VLOOKUP($E$7,'Rate Lookup'!$A$3:$AD$50,25,FALSE),2))) ->  | I172: =IF(AND($E172="",$F172="",$G172=""),"",(ROUND(SUM(E172:G172)*VLOOKUP($E$7,'Rate Lookup'!$A$3:$AD$50,27,FALSE),2))) -> 
H173: =IF(AND($E173="",$F173="",$G173=""),"",(ROUND(SUM(E173:G173)*VLOOKUP($E$7,'Rate Lookup'!$A$3:$AD$50,25,FALSE),2))) ->  | I173: =IF(AND($E173="",$F173="",$G173=""),"",(ROUND(SUM(E173:G173)*VLOOKUP($E$7,'Rate Lookup'!$A$3:$AD$50,27,FALSE),2))) -> 
H174: =IF(AND($E174="",$F174="",$G174=""),"",(ROUND(SUM(E174:G174)*VLOOKUP($E$7,'Rate Lookup'!$A$3:$AD$50,25,FALSE),2))) ->  | I174: =IF(AND($E174="",$F174="",$G174=""),"",(ROUND(SUM(E174:G174)*VLOOKUP($E$7,'Rate Lookup'!$A$3:$AD$50,27,FALSE),2))) -> 
H175: =IF(AND($E175="",$F175="",$G175=""),"",(ROUND(SUM(E175:G175)*VLOOKUP($E$7,'Rate Lookup'!$A$3:$AD$50,25,FALSE),2))) ->  | I175: =IF(AND($E175="",$F175="",$G175=""),"",(ROUND(SUM(E175:G175)*VLOOKUP($E$7,'Rate Lookup'!$A$3:$AD$50,27,FALSE),2))) -> 
H176: =IF(AND($E176="",$F176="",$G176=""),"",(ROUND(SUM(E176:G176)*VLOOKUP($E$7,'Rate Lookup'!$A$3:$AD$50,25,FALSE),2))) ->  | I176: =IF(AND($E176="",$F176="",$G176=""),"",(ROUND(SUM(E176:G176)*VLOOKUP($E$7,'Rate Lookup'!$A$3:$AD$50,27,FALSE),2))) -> 
H177: =IF(AND($E177="",$F177="",$G177=""),"",(ROUND(SUM(E177:G177)*VLOOKUP($E$7,'Rate Lookup'!$A$3:$AD$50,25,FALSE),2))) ->  | I177: =IF(AND($E177="",$F177="",$G177=""),"",(ROUND(SUM(E177:G177)*VLOOKUP($E$7,'Rate Lookup'!$A$3:$AD$50,27,FALSE),2))) -> 
H178: =IF(AND($E178="",$F178="",$G178=""),"",(ROUND(SUM(E178:G178)*VLOOKUP($E$7,'Rate Lookup'!$A$3:$AD$50,25,FALSE),2))) ->  | I178: =IF(AND($E178="",$F178="",$G178=""),"",(ROUND(SUM(E178:G178)*VLOOKUP($E$7,'Rate Lookup'!$A$3:$AD$50,27,FALSE),2))) -> 
H179: =IF(AND($E179="",$F179="",$G179=""),"",(ROUND(SUM(E179:G179)*VLOOKUP($E$7,'Rate Lookup'!$A$3:$AD$50,25,FALSE),2))) ->  | I179: =IF(AND($E179="",$F179="",$G179=""),"",(ROUND(SUM(E179:G179)*VLOOKUP($E$7,'Rate Lookup'!$A$3:$AD$50,27,FALSE),2))) -> 
H180: =IF(AND($E180="",$F180="",$G180=""),"",(ROUND(SUM(E180:G180)*VLOOKUP($E$7,'Rate Lookup'!$A$3:$AD$50,25,FALSE),2))) ->  | I180: =IF(AND($E180="",$F180="",$G180=""),"",(ROUND(SUM(E180:G180)*VLOOKUP($E$7,'Rate Lookup'!$A$3:$AD$50,27,FALSE),2))) -> 
H181: =IF(AND($E181="",$F181="",$G181=""),"",(ROUND(SUM(E181:G181)*VLOOKUP($E$7,'Rate Lookup'!$A$3:$AD$50,25,FALSE),2))) ->  | I181: =IF(AND($E181="",$F181="",$G181=""),"",(ROUND(SUM(E181:G181)*VLOOKUP($E$7,'Rate Lookup'!$A$3:$AD$50,27,FALSE),2))) -> 
H182: =IF(AND($E182="",$F182="",$G182=""),"",(ROUND(SUM(E182:G182)*VLOOKUP($E$7,'Rate Lookup'!$A$3:$AD$50,25,FALSE),2))) ->  | I182: =IF(AND($E182="",$F182="",$G182=""),"",(ROUND(SUM(E182:G182)*VLOOKUP($E$7,'Rate Lookup'!$A$3:$AD$50,27,FALSE),2))) -> 
H183: =IF(AND($E183="",$F183="",$G183=""),"",(ROUND(SUM(E183:G183)*VLOOKUP($E$7,'Rate Lookup'!$A$3:$AD$50,25,FALSE),2))) ->  | I183: =IF(AND($E183="",$F183="",$G183=""),"",(ROUND(SUM(E183:G183)*VLOOKUP($E$7,'Rate Lookup'!$A$3:$AD$50,27,FALSE),2))) -> 
H184: =IF(AND($E184="",$F184="",$G184=""),"",(ROUND(SUM(E184:G184)*VLOOKUP($E$7,'Rate Lookup'!$A$3:$AD$50,25,FALSE),2))) ->  | I184: =IF(AND($E184="",$F184="",$G184=""),"",(ROUND(SUM(E184:G184)*VLOOKUP($E$7,'Rate Lookup'!$A$3:$AD$50,27,FALSE),2))) -> 
H185: =IF(AND($E185="",$F185="",$G185=""),"",(ROUND(SUM(E185:G185)*VLOOKUP($E$7,'Rate Lookup'!$A$3:$AD$50,25,FALSE),2))) ->  | I185: =IF(AND($E185="",$F185="",$G185=""),"",(ROUND(SUM(E185:G185)*VLOOKUP($E$7,'Rate Lookup'!$A$3:$AD$50,27,FALSE),2))) -> 
H186: =IF(AND($E186="",$F186="",$G186=""),"",(ROUND(SUM(E186:G186)*VLOOKUP($E$7,'Rate Lookup'!$A$3:$AD$50,25,FALSE),2))) ->  | I186: =IF(AND($E186="",$F186="",$G186=""),"",(ROUND(SUM(E186:G186)*VLOOKUP($E$7,'Rate Lookup'!$A$3:$AD$50,27,FALSE),2))) -> 
H187: =IF(AND($E187="",$F187="",$G187=""),"",(ROUND(SUM(E187:G187)*VLOOKUP($E$7,'Rate Lookup'!$A$3:$AD$50,25,FALSE),2))) ->  | I187: =IF(AND($E187="",$F187="",$G187=""),"",(ROUND(SUM(E187:G187)*VLOOKUP($E$7,'Rate Lookup'!$A$3:$AD$50,27,FALSE),2))) -> 
H188: =IF(AND($E188="",$F188="",$G188=""),"",(ROUND(SUM(E188:G188)*VLOOKUP($E$7,'Rate Lookup'!$A$3:$AD$50,25,FALSE),2))) ->  | I188: =IF(AND($E188="",$F188="",$G188=""),"",(ROUND(SUM(E188:G188)*VLOOKUP($E$7,'Rate Lookup'!$A$3:$AD$50,27,FALSE),2))) -> 
H189: =IF(AND($E189="",$F189="",$G189=""),"",(ROUND(SUM(E189:G189)*VLOOKUP($E$7,'Rate Lookup'!$A$3:$AD$50,25,FALSE),2))) ->  | I189: =IF(AND($E189="",$F189="",$G189=""),"",(ROUND(SUM(E189:G189)*VLOOKUP($E$7,'Rate Lookup'!$A$3:$AD$50,27,FALSE),2))) -> 
H190: =IF(AND($E190="",$F190="",$G190=""),"",(ROUND(SUM(E190:G190)*VLOOKUP($E$7,'Rate Lookup'!$A$3:$AD$50,25,FALSE),2))) ->  | I190: =IF(AND($E190="",$F190="",$G190=""),"",(ROUND(SUM(E190:G190)*VLOOKUP($E$7,'Rate Lookup'!$A$3:$AD$50,27,FALSE),2))) -> 
H191: =IF(AND($E191="",$F191="",$G191=""),"",(ROUND(SUM(E191:G191)*VLOOKUP($E$7,'Rate Lookup'!$A$3:$AD$50,25,FALSE),2))) ->  | I191: =IF(AND($E191="",$F191="",$G191=""),"",(ROUND(SUM(E191:G191)*VLOOKUP($E$7,'Rate Lookup'!$A$3:$AD$50,27,FALSE),2))) -> 
H192: =IF(AND($E192="",$F192="",$G192=""),"",(ROUND(SUM(E192:G192)*VLOOKUP($E$7,'Rate Lookup'!$A$3:$AD$50,25,FALSE),2))) ->  | I192: =IF(AND($E192="",$F192="",$G192=""),"",(ROUND(SUM(E192:G192)*VLOOKUP($E$7,'Rate Lookup'!$A$3:$AD$50,27,FALSE),2))) -> 
H193: =IF(AND($E193="",$F193="",$G193=""),"",(ROUND(SUM(E193:G193)*VLOOKUP($E$7,'Rate Lookup'!$A$3:$AD$50,25,FALSE),2))) ->  | I193: =IF(AND($E193="",$F193="",$G193=""),"",(ROUND(SUM(E193:G193)*VLOOKUP($E$7,'Rate Lookup'!$A$3:$AD$50,27,FALSE),2))) -> 
H194: =IF(AND($E194="",$F194="",$G194=""),"",(ROUND(SUM(E194:G194)*VLOOKUP($E$7,'Rate Lookup'!$A$3:$AD$50,25,FALSE),2))) ->  | I194: =IF(AND($E194="",$F194="",$G194=""),"",(ROUND(SUM(E194:G194)*VLOOKUP($E$7,'Rate Lookup'!$A$3:$AD$50,27,FALSE),2))) -> 
H195: =IF(AND($E195="",$F195="",$G195=""),"",(ROUND(SUM(E195:G195)*VLOOKUP($E$7,'Rate Lookup'!$A$3:$AD$50,25,FALSE),2))) ->  | I195: =IF(AND($E195="",$F195="",$G195=""),"",(ROUND(SUM(E195:G195)*VLOOKUP($E$7,'Rate Lookup'!$A$3:$AD$50,27,FALSE),2))) -> 
H196: =IF(AND($E196="",$F196="",$G196=""),"",(ROUND(SUM(E196:G196)*VLOOKUP($E$7,'Rate Lookup'!$A$3:$AD$50,25,FALSE),2))) ->  | I196: =IF(AND($E196="",$F196="",$G196=""),"",(ROUND(SUM(E196:G196)*VLOOKUP($E$7,'Rate Lookup'!$A$3:$AD$50,27,FALSE),2))) -> 
H197: =IF(AND($E197="",$F197="",$G197=""),"",(ROUND(SUM(E197:G197)*VLOOKUP($E$7,'Rate Lookup'!$A$3:$AD$50,25,FALSE),2))) ->  | I197: =IF(AND($E197="",$F197="",$G197=""),"",(ROUND(SUM(E197:G197)*VLOOKUP($E$7,'Rate Lookup'!$A$3:$AD$50,27,FALSE),2))) -> 
H198: =IF(AND($E198="",$F198="",$G198=""),"",(ROUND(SUM(E198:G198)*VLOOKUP($E$7,'Rate Lookup'!$A$3:$AD$50,25,FALSE),2))) ->  | I198: =IF(AND($E198="",$F198="",$G198=""),"",(ROUND(SUM(E198:G198)*VLOOKUP($E$7,'Rate Lookup'!$A$3:$AD$50,27,FALSE),2))) -> 
H199: =IF(AND($E199="",$F199="",$G199=""),"",(ROUND(SUM(E199:G199)*VLOOKUP($E$7,'Rate Lookup'!$A$3:$AD$50,25,FALSE),2))) ->  | I199: =IF(AND($E199="",$F199="",$G199=""),"",(ROUND(SUM(E199:G199)*VLOOKUP($E$7,'Rate Lookup'!$A$3:$AD$50,27,FALSE),2))) -> 
H200: =IF(AND($E200="",$F200="",$G200=""),"",(ROUND(SUM(E200:G200)*VLOOKUP($E$7,'Rate Lookup'!$A$3:$AD$50,25,FALSE),2))) ->  | I200: =IF(AND($E200="",$F200="",$G200=""),"",(ROUND(SUM(E200:G200)*VLOOKUP($E$7,'Rate Lookup'!$A$3:$AD$50,27,FALSE),2))) -> 
H201: =IF(AND($E201="",$F201="",$G201=""),"",(ROUND(SUM(E201:G201)*VLOOKUP($E$7,'Rate Lookup'!$A$3:$AD$50,25,FALSE),2))) ->  | I201: =IF(AND($E201="",$F201="",$G201=""),"",(ROUND(SUM(E201:G201)*VLOOKUP($E$7,'Rate Lookup'!$A$3:$AD$50,27,FALSE),2))) -> 
H202: =IF(AND($E202="",$F202="",$G202=""),"",(ROUND(SUM(E202:G202)*VLOOKUP($E$7,'Rate Lookup'!$A$3:$AD$50,25,FALSE),2))) ->  | I202: =IF(AND($E202="",$F202="",$G202=""),"",(ROUND(SUM(E202:G202)*VLOOKUP($E$7,'Rate Lookup'!$A$3:$AD$50,27,FALSE),2))) -> 
... 19 more rows

Sheet Rate Lookup (hidden)
A1: Data Needs entered | B1: <<<<<<< "All Time" entries are paid on hours worked >>>>>>>
C2: Straight Time | D2: Time & One-Half | E2: Double Time | G2: Straight Time | H2: Time & One-Half | I2: Double Time | K2: Straight Time | L2: Time & One-Half | M2: Double Time | O2: All Time | Q2: All Time | S2: All Time | U2: All Time | W2: All Time | Y2: All Time | AA2: All Time | AF2: January, 2015 | AG2: Rates Effective 8/1/2014 | AI2: Column1
A3: SIBA Rates Effective 8/1/2014 | B3: Welfare | C3: 7.1 | D3: =ROUND(C3*1.5,2) -> 10.65 | E3: =C3*2 -> 14.2 | F3: Pension | G3: 8.85 | H3: =(G3*1.5) -> 13.275 | I3: =G3*2 -> 17.7 | J3: Annuity | K3: 2.55 | L3: =ROUND(K3*1.5,2) -> 3.83 | M3: =K3*2 -> 5.1 | N3: Training | O3: 0.8 | P3: LECET | Q3: 1.22 | R3: Dues 100 | S3: 0.3 | T3: Dues 397 | U3: 0.2 | V3: Dues 397 Non-SIBA | W3: N/A | X3: MW LPL | Y3: 0.02 | Z3: Check-Off | AA3: 0.5 | AF3: February, 2015 | AG3: Rates Effective 8/1/2014 | AI3: 100
A4: SIBA Rates Effective 8/1/2015 | B4: Welfare | C4: 7.4 | D4: =ROUND(C4*1.5,2) -> 11.1 | E4: 14.8 | F4: Pension | G4: 9 | H4: 13.5 | I4: 18 | J4: Annuity | K4: 2.8 | L4: =ROUND(K4*1.5,2) -> 4.2 | M4: 5.6 | N4: Training | O4: 0.8 | P4: LECET | Q4: 1.22 | R4: Dues 100 | S4: 0.3 | T4: Dues 397 | U4: 0.2 | V4: Dues 397 Non-SIBA | W4: N/A | X4: MW LPL | Y4: 0.02 | Z4: Check-Off | AA4: 0.5 | AF4: March, 2015 | AG4: Rates Effective 8/1/2014 | AI4: 397
A5: SIBA Rates Effective 8/1/2016 | B5: Welfare | C5: 8 | D5: =ROUND(C5*1.5,2) -> 12 | E5: 16 | F5: Pension | G5: 9.25 | H5: 13.875 | I5: 18.5 | J5: Annuity | K5: 3 | L5: =ROUND(K5*1.5,2) -> 4.5 | M5: 6 | N5: Training | O5: 0.8 | P5: LECET | Q5: 1.28 | R5: Dues 100 | S5: 0.3 | T5: Dues 397 | U5: 0.2 | V5: Dues 397 Non-SIBA | W5: N/A | X5: MW LPL | Y5: 0.02 | Z5: Check-Off | AA5: 0.55 | AF5: April, 2015 | AG5: Rates Effective 8/1/2014
A6: SIBA Rates Effective 8/1/2017 | B6: Welfare | C6: 8.25 | D6: =(C6*1.5) -> 12.375 | E6: 16.5 | F6: Pension | G6: 9.75 | H6: 14.625 | I6: 19.5 | J6: Annuity | K6: 3.65 | L6: =(K6*1.5) -> 5.475 | M6: 7.3 | N6: Training | O6: 0.8 | P6: LECET | Q6: 1.28 | R6: Dues 100 | S6: 0.3 | T6: Dues 397 | U6: 0.2 | V6: Dues 397 Non-SIBA | W6: N/A | X6: MW LPL | Y6: 0.02 | Z6: Check-Off | AA6: 0.55 | AF6: May, 2015 | AG6: Rates Effective 8/1/2014 | AI6: Column1
A7: SIBA Rates Effective 8/1/2018 | B7: Welfare | C7: 8.25 | D7: 12.375 | E7: 16.5 | F7: Pension | G7: 9.9 | H7: 14.85 | I7: 19.8 | J7: Annuity | K7: 4.15 | L7: 6.225 | M7: 8.3 | N7: Training | O7: 0.8 | P7: LECET | Q7: 1.43 | R7: Dues 100 | S7: 0.3 | T7: Dues 397 | U7: 0.3 | V7: Dues 397 Non-SIBA | W7: N/A | X7: MW LPL | Y7: 0.02 | Z7: Check-Off | AA7: 0.6 | AF7: June, 2015 | AG7: Rates Effective 8/1/2014 | AI7: SIBA
A8: SIBA Rates Effective 8/1/2019 | B8: Welfare | C8: 8.3 | D8: 12.45 | E8: 16.6 | F8: Pension | G8: 10.4 | H8: 15.6 | I8: 20.8 | J8: Annuity | K8: 4.5 | L8: 6.75 | M8: 9 | N8: Training | O8: 0.8 | P8: LECET | Q8: 1.55 | R8: Dues 100 | S8: 0.3 | T8: Dues 397 | U8: 0.3 | V8: Dues 397 Non-SIBA | W8: N/A | X8: MW LPL | Y8: 0.02 | Z8: Check-Off | AA8: 0.7 | AF8: July, 2015 | AG8: Rates Effective 8/1/2014 | AI8: Non-SIBA
A9: SIBA Rates Effective 8/1/2020 | B9: Welfare | C9: 8.45 | D9: 12.675 | E9: =C9*2 -> 16.9 | F9: Pension | G9: 10.9 | H9: =(G9*1.5) -> 16.35 | I9: =G9*2 -> 21.8 | J9: Annuity | K9: 5 | L9: 7.5 | M9: =K9*2 -> 10 | N9: Training | O9: 0.8 | P9: LECET | Q9: 1.55 | R9: Dues 100 | S9: 0.3 | T9: Dues 397 | U9: 0.5 | V9: Dues 397 Non-SIBA | W9: N/A | X9: MW LPL | Y9: 0.02 | Z9: Check-Off | AA9: 0.7 | AF9: August, 2015 | AG9: Rates Effective 8/1/2015 | AI9: Masonry
A10: SIBA Rates Effective 8/1/2021 | B10: Welfare | C10: 8.55 | D10: 12.825 | E10: =C10*2 -> 17.1 | F10: Pension | G10: 11.4 | H10: =(G10*1.5) -> 17.1 | I10: =G10*2 -> 22.8 | J10: Annuity | K10: 5.5 | L10: 8.25 | M10: =K10*2 -> 11 | N10: Training | O10: 0.8 | P10: LECET | Q10: 1.65 | R10: Dues 100 | S10: 0.3 | T10: Dues 397 | U10: 0.6 | V10: Dues 397 Non-SIBA | W10: N/A | X10: MW LPL | Y10: 0.02 | Z10: Check-Off | AA10: 0.72 | AF10: September, 2015 | AG10: Rates Effective 8/1/2015
A11: SIBA Rates Effective 8/1/2022 | B11: Welfare | C11: 8.6 | D11: 12.9 | E11: =C11*2 -> 17.2 | F11: Pension | G11: 11.4 | H11: =(G11*1.5) -> 17.1 | I11: =G11*2 -> 22.8 | J11: Annuity | K11: 6.5 | L11: 9.75 | M11: =K11*2 -> 13 | N11: Training | O11: 0.8 | P11: LECET | Q11: 1.9 | R11: Dues 100 | S11: 0.3 | T11: Dues 397 | U11: 0.6 | V11: Dues 397 Non-SIBA | W11: N/A | X11: MW LPL | Y11: 0.02 | Z11: Check-Off | AA11: 0.89 | AF11: October, 2015 | AG11: Rates Effective 8/1/2015
A12: SIBA Rates Effective 8/1/2023 | B12: Welfare | C12: 8.7 | D12: =(C12*1.5) -> 13.05 | E12: =C12*2 -> 17.4 | F12: Pension | G12: 11.4 | H12: =(G12*1.5) -> 17.1 | I12: =G12*2 -> 22.8 | J12: Annuity | K12: 7.5 | L12: =(K12*1.5) -> 11.25 | M12: =K12*2 -> 15 | N12: Training | O12: 0.8 | P12: LECET | Q12: 2.01 | R12: Dues 100 | S12: 0.3 | T12: Dues 397 | U12: 0.6 | V12: Dues 397 Non-SIBA | W12: N/A | X12: MW LPL | Y12: 0.05 | Z12: Check-Off | AA12: 0.92 | AF12: November, 2015 | AG12: Rates Effective 8/1/2015
A13: Non-SIBA Rates Effective 8/1/2014 | B13: Welfare | C13: =C3 -> 7.1 | D13: =ROUND(C13*1.5,2) -> 10.65 | E13: 14.2 | F13: Pension | G13: =G3 -> 8.85 | H13: 13.275 | I13: 17.7 | J13: Annuity | K13: =K3 -> 2.55 | L13: =ROUND(K13*1.5,2) -> 3.83 | M13: 5.1 | N13: Training | O13: =O3 -> 0.8 | P13: LECET | Q13: 1.12 | R13: Dues 100 | S13: =S3 -> 0.3 | T13: Dues 397 | U13: N/A | V13: Dues 397 Non-SIBA | W13: 0.3 | X13: MW LPL | Y13: =Y3 -> 0.02 | Z13: Check-Off | AA13: 0.5 | AF13: December, 2015 | AG13: Rates Effective 8/1/2015 | AI13: Yes
A14: Non-SIBA Rates Effective 8/1/2015 | B14: Welfare | C14: 7.4 | D14: =ROUND(C14*1.5,2) -> 11.1 | E14: 14.8 | F14: Pension | G14: 9 | H14: 13.5 | I14: 18 | J14: Annuity | K14: 2.8 | L14: =ROUND(K14*1.5,2) -> 4.2 | M14: 5.6 | N14: Training | O14: 0.8 | P14: LECET | Q14: 1.12 | R14: Dues 100 | S14: 0.3 | T14: Dues 397 | U14: N/A | V14: Dues 397 Non-SIBA | W14: 0.3 | X14: MW LPL | Y14: 0.02 | Z14: Check-Off | AA14: 0.5 | AF14: January, 2016 | AG14: Rates Effective 8/1/2015 | AI14: No
A15: Non-SIBA Rates Effective 8/1/2016 | B15: Welfare | C15: 8 | D15: =ROUND(C15*1.5,2) -> 12 | E15: 16 | F15: Pension | G15: 9.25 | H15: 13.875 | I15: 18.5 | J15: Annuity | K15: 3 | L15: =ROUND(K15*1.5,2) -> 4.5 | M15: 6 | N15: Training | O15: 0.8 | P15: LECET | Q15: 1.18 | R15: Dues 100 | S15: 0.3 | T15: Dues 397 | U15: N/A | V15: Dues 397 Non-SIBA | W15: 0.3 | X15: MW LPL | Y15: 0.02 | Z15: Check-Off | AA15: 0.55 | AF15: February, 2016 | AG15: Rates Effective 8/1/2015
A16: Non-SIBA Rates Effective 8/1/2017 | B16: Welfare | C16: 8.25 | D16: =(C16*1.5) -> 12.375 | E16: 16.5 | F16: Pension | G16: 9.75 | H16: 14.625 | I16: 19.5 | J16: Annuity | K16: 3.65 | L16: =(K16*1.5) -> 5.475 | M16: 7.3 | N16: Training | O16: 0.8 | P16: LECET | Q16: 1.18 | R16: Dues 100 | S16: 0.3 | T16: Dues 397 | U16: N/A | V16: Dues 397 Non-SIBA | W16: 0.3 | X16: MW LPL | Y16: 0.02 | Z16: Check-Off | AA16: 0.55 | AF16: March, 2016 | AG16: Rates Effective 8/1/2015
A17: Non-SIBA Rates Effective 8/1/2018 | B17: Welfare | C17: 8.25 | D17: 12.375 | E17: 16.5 | F17: Pension | G17: 9.9 | H17: 14.85 | I17: 19.8 | J17: Annuity | K17: 4.15 | L17: 6.225 | M17: 8.3 | N17: Training | O17: 0.8 | P17: LECET | Q17: 1.33 | R17: Dues 100 | S17: 0.3 | T17: Dues 397 | U17: N/A | V17: Dues 397 Non-SIBA | W17: 0.4 | X17: MW LPL | Y17: 0.02 | Z17: Check-Off | AA17: 0.6 | AF17: April, 2016 | AG17: Rates Effective 8/1/2015
A18: Non-SIBA Rates Effective 8/1/2019 | B18: Welfare | C18: 8.3 | D18: 12.45 | E18: 16.6 | F18: Pension | G18: 10.4 | H18: 15.6 | I18: 20.8 | J18: Annuity | K18: 4.5 | L18: 6.75 | M18: 9 | N18: Training | O18: 0.8 | P18: LECET | Q18: 1.45 | R18: Dues 100 | S18: 0.3 | T18: Dues 397 | U18: N/A | V18: Dues 397 Non-SIBA | W18: 0.4 | X18: MW LPL | Y18: 0.02 | Z18: Check-Off | AA18: 0.7 | AF18: May, 2016 | AG18: Rates Effective 8/1/2015
A19: Non-SIBA Rates Effective 8/1/2020 | B19: Welfare | C19: 8.45 | D19: 12.675 | E19: 16.9 | F19: Pension | G19: 10.9 | H19: 16.35 | I19: 21.8 | J19: Annuity | K19: 5 | L19: 7.5 | M19: 10 | N19: Training | O19: 0.8 | P19: LECET | Q19: 1.45 | R19: Dues 100 | S19: 0.3 | T19: Dues 397 | U19: N/A | V19: Dues 397 Non-SIBA | W19: 0.6 | X19: MW LPL | Y19: 0.02 | Z19: Check-Off | AA19: 0.7 | AF19: June, 2016 | AG19: Rates Effective 8/1/2015
A20: Non-SIBA Rates Effective 8/1/2021 | B20: Welfare | C20: 8.55 | D20: 12.825 | E20: 17.1 | F20: Pension | G20: 11.4 | H20: 17.1 | I20: 22.8 | J20: Annuity | K20: 5.5 | L20: 8.25 | M20: 11 | N20: Training | O20: 0.8 | P20: LECET | Q20: 1.55 | R20: Dues 100 | S20: 0.3 | T20: Dues 397 | U20: N/A | V20: Dues 397 Non-SIBA | W20: 0.7 | X20: MW LPL | Y20: 0.02 | Z20: Check-Off | AA20: 0.72 | AF20: July, 2016 | AG20: Rates Effective 8/1/2015
A21: Non-SIBA Rates Effective 8/1/2022 | B21: Welfare | C21: 8.6 | D21: 12.9 | E21: 17.2 | F21: Pension | G21: 11.4 | H21: 17.1 | I21: 22.8 | J21: Annuity | K21: 6.5 | L21: 9.75 | M21: 13 | N21: Training | O21: 0.8 | P21: LECET | Q21: 1.75 | R21: Dues 100 | S21: 0.3 | T21: Dues 397 | U21: N/A | V21: Dues 397 Non-SIBA | W21: 0.75 | X21: MW LPL | Y21: 0.02 | Z21: Check-Off | AA21: 0.89 | AF21: August, 2016 | AG21: Rates Effective 8/1/2016
A22: Non-SIBA Rates Effective 8/1/2023 | B22: Welfare | C22: 8.7 | D22: 13.05 | E22: =C22*2 -> 17.4 | F22: Pension | G22: 11.4 | H22: =(G22*1.5) -> 17.1 | I22: =G22*2 -> 22.8 | J22: Annuity | K22: 7.5 | L22: 11.25 | M22: =K22*2 -> 15 | N22: Training | O22: 0.8 | P22: LECET | Q22: 1.86 | R22: Dues 100 | S22: 0.3 | T22: Dues 397 | U22: N/A | V22: Dues 397 Non-SIBA | W22: 0.75 | X22: MW LPL | Y22: 0.05 | Z22: Check-Off | AA22: 0.92 | AF22: September, 2016 | AG22: Rates Effective 8/1/2016
A23: Masonry Rates Effective 8/1/2014 | B23: Welfare | C23: =C3 -> 7.1 | D23: =ROUND(C23*1.5,2) -> 10.65 | E23: 14.2 | F23: Pension | G23: =G3 -> 8.85 | H23: 13.275 | I23: 17.7 | J23: Annuity | K23: =K3 -> 2.55 | L23: =ROUND(K23*1.5,2) -> 3.83 | M23: 5.1 | N23: Training | O23: =O3 -> 0.8 | P23: LECET | Q23: 1.17 | R23: Dues 100 | S23: =S3 -> 0.3 | T23: Dues 397 | U23: =U3 -> 0.2 | V23: Dues 397 Non-SIBA | W23: N/A | X23: MW LPL | Y23: =Y3 -> 0.02 | Z23: Check-Off | AA23: 0.5 | AF23: October, 2016 | AG23: Rates Effective 8/1/2016
A24: Masonry Rates Effective 8/1/2015 | B24: Welfare | C24: 7.4 | D24: =ROUND(C24*1.5,2) -> 11.1 | E24: 14.8 | F24: Pension | G24: 9 | H24: 13.5 | I24: 18 | J24: Annuity | K24: 2.8 | L24: =ROUND(K24*1.5,2) -> 4.2 | M24: 5.6 | N24: Training | O24: 0.8 | P24: LECET | Q24: 1.17 | R24: Dues 100 | S24: 0.3 | T24: Dues 397 | U24: 0.2 | V24: Dues 397 Non-SIBA | W24: N/A | X24: MW LPL | Y24: 0.02 | Z24: Check-Off | AA24: 0.5 | AF24: November, 2016 | AG24: Rates Effective 8/1/2016
A25: Masonry Rates Effective 8/1/2016 | B25: Welfare | C25: 8 | D25: =ROUND(C25*1.5,2) -> 12 | E25: 16 | F25: Pension | G25: 9.25 | H25: 13.875 | I25: 18.5 | J25: Annuity | K25: 3 | L25: =ROUND(K25*1.5,2) -> 4.5 | M25: 6 | N25: Training | O25: 0.8 | P25: LECET | Q25: 1.33 | R25: Dues 100 | S25: 0.3 | T25: Dues 397 | U25: 0.2 | V25: Dues 397 Non-SIBA | W25: N/A | X25: MW LPL | Y25: 0.02 | Z25: Check-Off | AA25: 0.55 | AF25: December, 2016 | AG25: Rates Effective 8/1/2016
A26: Masonry Rates Effective 8/1/2017 | B26: Welfare | C26: 8.25 | D26: =(C26*1.5) -> 12.375 | E26: 16.5 | F26: Pension | G26: 9.75 | H26: 14.625 | I26: 19.5 | J26: Annuity | K26: 3.65 | L26: =(K26*1.5) -> 5.475 | M26: 7.3 | N26: Training | O26: 0.8 | P26: LECET | Q26: 1.33 | R26: Dues 100 | S26: 0.3 | T26: Dues 397 | U26: 0.2 | V26: Dues 397 Non-SIBA | W26: N/A | X26: MW LPL | Y26: 0.02 | Z26: Check-Off | AA26: 0.55 | AF26: January, 2017 | AG26: Rates Effective 8/1/2016
A27: Masonry Rates Effective 8/1/2018 | B27: Welfare | C27: 8.25 | D27: 12.375 | E27: 16.5 | F27: Pension | G27: 9.9 | H27: 14.85 | I27: 19.8 | J27: Annuity | K27: 4.15 | L27: 6.225 | M27: 8.3 | N27: Training | O27: 0.8 | P27: LECET | Q27: 1.48 | R27: Dues 100 | S27: 0.3 | T27: Dues 397 | U27: 0.3 | V27: Dues 397 Non-SIBA | W27: N/A | X27: MW LPL | Y27: 0.02 | Z27: Check-Off | AA27: 0.6 | AF27: February, 2017 | AG27: Rates Effective 8/1/2016
A28: Masonry Rates Effective 8/1/2019 | B28: Welfare | C28: 8.3 | D28: 12.45 | E28: 16.6 | F28: Pension | G28: 10.4 | H28: 15.6 | I28: 20.8 | J28: Annuity | K28: 4.5 | L28: 6.75 | M28: 9 | N28: Training | O28: 0.8 | P28: LECET | Q28: 1.6 | R28: Dues 100 | S28: 0.3 | T28: Dues 397 | U28: 0.3 | V28: Dues 397 Non-SIBA | W28: N/A | X28: MW LPL | Y28: 0.02 | Z28: Check-Off | AA28: 0.7 | AF28: March, 2017 | AG28: Rates Effective 8/1/2016
A29: Masonry Rates Effective 8/1/2020 | B29: Welfare | C29: 8.45 | D29: 12.675 | E29: 16.9 | F29: Pension | G29: 10.9 | H29: 16.35 | I29: 21.8 | J29: Annuity | K29: 5 | L29: 7.5 | M29: 10 | N29: Training | O29: 0.8 | P29: LECET | Q29: 1.6 | R29: Dues 100 | S29: 0.3 | T29: Dues 397 | U29: 0.5 | V29: Dues 397 Non-SIBA | W29: N/A | X29: MW LPL | Y29: 0.02 | Z29: Check-Off | AA29: 0.7 | AF29: April, 2017 | AG29: Rates Effective 8/1/2016
A30: Masonry Rates Effective 8/1/2021 | B30: Welfare | C30: 8.55 | D30: 12.825 | E30: 17.1 | F30: Pension | G30: 11.4 | H30: 17.1 | I30: 22.8 | J30: Annuity | K30: 5.5 | L30: 8.25 | M30: 11 | N30: Training | O30: 0.8 | P30: LECET | Q30: 1.7 | R30: Dues 100 | S30: 0.3 | T30: Dues 397 | U30: 0.6 | V30: Dues 397 Non-SIBA | W30: N/A | X30: MW LPL | Y30: 0.02 | Z30: Check-Off | AA30: 0.72 | AF30: May, 2017 | AG30: Rates Effective 8/1/2016
A31: Masonry Rates Effective 8/1/2022 | B31: Welfare | C31: 8.6 | D31: 12.9 | E31: 17.2 | F31: Pension | G31: 11.4 | H31: 17.1 | I31: 22.8 | J31: Annuity | K31: 6.5 | L31: 9.75 | M31: 13 | N31: Training | O31: 0.8 | P31: LECET | Q31: 1.9 | R31: Dues 100 | S31: 0.3 | T31: Dues 397 | U31: 0.6 | V31: Dues 397 Non-SIBA | W31: N/A | X31: MW LPL | Y31: 0.02 | Z31: Check-Off | AA31: 0.89 | AF31: June, 2017 | AG31: Rates Effective 8/1/2016
A32: Masonry Rates Effective 8/1/2023 | B32: Welfare | C32: 8.7 | D32: 13.05 | E32: 17.4 | F32: Pension | G32: 11.4 | H32: 17.1 | I32: 22.8 | J32: Annuity | K32: 7.5 | L32: 11.25 | M32: 15 | N32: Training | O32: 0.8 | P32: LECET | Q32: 2.01 | R32: Dues 100 | S32: 0.3 | T32: Dues 397 | U32: 0.6 | V32: Dues 397 Non-SIBA | W32: N/A | X32: MW LPL | Y32: 0.05 | Z32: Check-Off | AA32: 0.92 | AF32: July, 2017 | AG32: Rates Effective 8/1/2016
AF33: October, 2016 | AG33: Rates Effective 8/1/2016
AF34: November, 2016 | AG34: Rates Effective 8/1/2016
AF35: December, 2016 | AG35: Rates Effective 8/1/2016
AF36: January, 2017 | AG36: Rates Effective 8/1/2016
AF37: February, 2017 | AG37: Rates Effective 8/1/2016
AF38: March, 2017 | AG38: Rates Effective 8/1/2016
AF39: April, 2017 | AG39: Rates Effective 8/1/2016
AF40: May, 2017 | AG40: Rates Effective 8/1/2016
AF41: June, 2017 | AG41: Rates Effective 8/1/2016
AF42: July, 2017 | AG42: Rates Effective 8/1/2016
AF43: June, 2018 | AG43: Rates Effective 8/1/2017
AF44: July, 2018 | AG44: Rates Effective 8/1/2017
AF45: August, 2018 | AG45: Rates Effective 8/1/2018
AF46: September, 2018 | AG46: Rates Effective 8/1/2018
AF47: October, 2018 | AG47: Rates Effective 8/1/2018
AF48: November, 2018 | AG48: Rates Effective 8/1/2018
AF49: December, 2018 | AG49: Rates Effective 8/1/2018
AF50: January, 2019 | AG50: Rates Effective 8/1/2018
AF51: February, 2019 | AG51: Rates Effective 8/1/2018
AF52: March, 2019 | AG52: Rates Effective 8/1/2018
AF53: April, 2019 | AG53: Rates Effective 8/1/2018
AF54: May, 2019 | AG54: Rates Effective 8/1/2018
AF55: June, 2019 | AG55: Rates Effective 8/1/2018
AF56: July, 2019 | AG56: Rates Effective 8/1/2018
AF57: August, 2019 | AG57: Rates Effective 8/1/2019
AF58: September, 2019 | AG58: Rates Effective 8/1/2019
AF59: October, 2019 | AG59: Rates Effective 8/1/2019
AF60: November, 2019 | AG60: Rates Effective 8/1/2019
AF61: December, 2019 | AG61: Rates Effective 8/1/2019
AF62: January, 2020 | AG62: Rates Effective 8/1/2019
AF63: February, 2020 | AG63: Rates Effective 8/1/2019
AF64: March, 2020 | AG64: Rates Effective 8/1/2019
AF65: April, 2020 | AG65: Rates Effective 8/1/2019
AF66: May, 2020 | AG66: Rates Effective 8/1/2019
AF67: June, 2020 | AG67: Rates Effective 8/1/2019
AF68: July, 2020 | AG68: Rates Effective 8/1/2019
AF69: August, 2020 | AG69: Rates Effective 8/1/2020
AF70: September, 2020 | AG70: Rates Effective 8/1/2020
AF71: October, 2020 | AG71: Rates Effective 8/1/2020
AF72: November, 2020 | AG72: Rates Effective 8/1/2020
AF73: December, 2020 | AG73: Rates Effective 8/1/2020
AF74: January, 2021 | AG74: Rates Effective 8/1/2020
AF75: February, 2021 | AG75: Rates Effective 8/1/2020
AF76: March, 2021 | AG76: Rates Effective 8/1/2020
AF77: April, 2021 | AG77: Rates Effective 8/1/2020
AF78: May, 2021 | AG78: Rates Effective 8/1/2020
AF79: June, 2021 | AG79: Rates Effective 8/1/2020
AF80: July, 2021 | AG80: Rates Effective 8/1/2020
AF81: August, 2021 | AG81: Rates Effective 8/1/2021
AF82: September, 2021 | AG82: Rates Effective 8/1/2021
AF83: October, 2021 | AG83: Rates Effective 8/1/2021
AF84: November, 2021 | AG84: Rates Effective 8/1/2021
AF85: December, 2021 | AG85: Rates Effective 8/1/2021
AF86: January, 2022 | AG86: Rates Effective 8/1/2021
AF87: February, 2022 | AG87: Rates Effective 8/1/2021
AF88: March, 2022 | AG88: Rates Effective 8/1/2021
AF89: April, 2022 | AG89: Rates Effective 8/1/2021
AF90: May, 2022 | AG90: Rates Effective 8/1/2021
AF91: June, 2022 | AG91: Rates Effective 8/1/2021
AF92: July, 2022 | AG92: Rates Effective 8/1/2021
AF93: August, 2022 | AG93: Rates Effective 8/1/2022
AF94: September, 2022 | AG94: Rates Effective 8/1/2022
AF95: October, 2022 | AG95: Rates Effective 8/1/2022
AF96: November, 2022 | AG96: Rates Effective 8/1/2022
AF97: December, 2022 | AG97: Rates Effective 8/1/2022
AF98: January, 2023 | AG98: Rates Effective 8/1/2022
AF99: February, 2023 | AG99: Rates Effective 8/1/2022
AF100: March, 2023 | AG100: Rates Effective 8/1/2022
AF101: April, 2023 | AG101: Rates Effective 8/1/2022
AF102: May, 2023 | AG102: Rates Effective 8/1/2022
AF103: June, 2023 | AG103: Rates Effective 8/1/2022
AF104: July, 2023 | AG104: Rates Effective 8/1/2022
AF105: August, 2023 | AG105: Rates Effective 8/1/2023
AF106: September, 2023 | AG106: Rates Effective 8/1/2023
AF107: October, 2023 | AG107: Rates Effective 8/1/2023
AF108: November, 2023 | AG108: Rates Effective 8/1/2023
AF109: December, 2023 | AG109: Rates Effective 8/1/2023
AF110: January, 2024 | AG110: Rates Effective 8/1/2023
AF111: February, 2024 | AG111: Rates Effective 8/1/2023
AF112: March, 2024 | AG112: Rates Effective 8/1/2023
AF113: April, 2024 | AG113: Rates Effective 8/1/2023
AF114: May, 2024 | AG114: Rates Effective 8/1/2023
AF115: June, 2024 | AG115: Rates Effective 8/1/2023
AF116: July, 2024 | AG116: Rates Effective 8/1/2023
